{"text_format":"1","workbook":"xlsx","n_sheets":3,"sheets":["PARAMETRI","NOTE","OPERE-COMPILAZIONE"],"not_rendered":{"charts":0,"images":1,"macros":1,"external_links":0,"defined_names":10,"comments":0,"pivot_tables":0},"unopened":[],"bounds":{"document_bytes":16777216,"sheet_cells":100000,"rows_first":2000,"rows_last":500,"rows_between":2000,"halvings":0,"cell_chars":16384,"cell_head_chars":4096},"cells_cut":0,"cells_raw":0,"read":"whole","date_system":"1900"}

{"sheet":"PARAMETRI","index":0,"n_rows":1,"n_cols":2,"rows_kept":1,"cut":false,"hidden":true,"merged":[]}
["Decimali Arrotondamento",2]

{"sheet":"NOTE","index":1,"n_rows":35,"n_cols":2,"rows_kept":35,"cut":false,"hidden":false,"merged":[]}
[]
[]
[]
[]
[]
[]
[]
[]
[]
[]
[]
[null,"MODELLO PER OFFERTA ECONOMICA"]
[]
[null,"composto da:"]
[null,"- n° 1 pagina per indicazioni"]
[null,"- n° 22 pagine del Modello Offerta da compilare"]
[]
[]
[]
[]
[]
[null,"INDICAZIONI:"]
[]
[]
["-","La descrizione sintetica è riportata unicamente per facilitare la compilazione dell'offerta da parte dell'offerente."]
[null,"Per la formulazione dell'offerta l'offerente dovrà fare comunque esclusivo riferimento alla relativa"]
[null,"descrizione riportata nell'elaborato: ELENCO DESCRITTIVO"]
[]
[]
["-","Nei casi in cui sia richiesta la compilazione di più rilevazioni riferentisi ad un'unica voce di ELENCO DESCRITTIVO sarà cura"]
[null,"dell'offerente compilare tutte le rilevazioni afferenti a quella voce con lo stesso importo unitario. In caso di discordanze "]
[null,"sarà ritenuto valido unicamente l'importo unitario inferiore tra quelli indicati."]
[null,"Gli articoli già presenti nelle righe precedenti sono contrassegnati con (*)"]
[]
["-","In caso di discordanza tra l'importo in cifre ed in lettere si farà riferimento all'importo in lettere."]

{"sheet":"OPERE-COMPILAZIONE","index":2,"n_rows":535,"n_cols":8,"rows_kept":535,"cut":false,"hidden":false,"merged":[[0,0,0,1],[0,2,1,2],[0,3,1,3],[0,4,1,4],[499,3,499,7],[497,3,497,7],[494,3,494,7],[495,3,495,7],[496,3,496,7],[498,3,498,7],[516,2,516,6],[525,2,525,6],[534,2,536,6],[500,0,500,7],[502,0,502,7],[501,0,501,7]]}
["Articolo",null,"Categorie di lavoro riferite all'elenco descrittivo delle voci","Unità di\nMisura","Quantità","Prezzo Unitario","Prezzo unitario","Prodotto"]
["N.","Cod.",null,null,null,"(in cifre)","(in lettere)","(Quantità x Prezzo)"]
[null,null,"MOVIMENTI TERRA, DEMOLIZIONI, OPERE PROVVISIONALI"]
[1,{"$f":"N4&M4","v":""},"Scavo di sbancamento con mezzo meccanico con sistemazione entro cantiere","mc",1344]
[{"$f":"+A4+1","v":2},{"$f":"N5&M5","v":""},"Scavo in sezione obbligata con mezzo meccanico con sistemazione entro cantiere","mc",1214.1959999999999]
[{"$f":"+A5+1","v":3},"","RINTERRI E TRASPORTI Rinterro compreso l'avvicinamento dei materiali, il compattamento a strati dei materiali impiegati fino al raggiungimento delle quote del terreno preesistente ed il costipamento prescritto:\r\ncon materiale di risulta proveniente da scavo","mc",400]
[null,"","STRUTTURE DI FONDAZIONE"]
[{"$f":"+A6+1","v":4},"","CONGLOMERATI CEMENTIZI PRECONFEZIONATI Magrone di sottofondazione eseguito mediante getto di conglomerato cementizio preconfezionato a dosaggio con cemento 42.5 R, per operazioni di media-grande entità, eseguito secondo le prescrizioni tecniche previ\r\n150 kg/mc","mc",69.697000000000003]
[5,"","CALCESTRUZZO STRUTTURALE DI FONDAZIONE >= C25/30 NORMA UNI EN 206-1 A CONSISTENZA FLUIDA CON SLUMP COME RICHIESTO DAL D.L.","m³",591.47]
[6,"","ACCIAIO TIPO B450C (FEB44K CONTROLLATO IN STABILIMENTO)","kg",53232.3]
[7,"","CASSEFORME IN LEGNAME PER OPERE DI FONDAZIONE","m²",1540.16]
[null,"","STRUTTURE IN ELEVAZIONE E SOLAI"]
[{"$f":"+A11+1","v":8},"","Formazione di falso gradino in cls","m",223.2]
[9,"","CALCESTRUZZO STRUTTURALE IN ELEVAZIONE >= C32/40 NORMA UNI EN 206-1 A CONSISTENZA FLUIDA CON SLUMP COME RICHIESTO DAL D.L.","m³",648.26]
[10,"","ACCIAIO TIPO B450C (FEB44K CONTROLLATO IN STABILIMENTO)","kg",159842.75]
[11,"","CASSEFORME IN LEGNAME PER PILASTRI A FACCE PIANE","m²",1420.99]
[12,"","CASSEFORME IN LEGNAME PER TRAVI-SOLETTE","m²",2341.1799999999998]
[13,"","CASSEFORME IN LEGNAME PER RAMPE E PIANEROTTOLI","m²",148.74]
[14,"","Solaio a lastra tipo Predalles H=36 cm (6+24+6)","m²",2760.42]
[null,"","VESPAI, SOTTOFONDI E MASSETTI"]
[{"$f":"+A19+1","v":15},"","RINTERRI E TRASPORTI Rinterro compreso l'avvicinamento dei materiali, il compattamento a strati dei materiali impiegati fino al raggiungimento delle quote del terreno preesistente ed il costipamento prescritto:\r\ncon materiale arido tipo A1, A2-4, A2-5, A3 proveniente da cave o da idoneo impianto di recupero rifiuti-inerti","mc",700]
[16,"","CONGLOMERATI CEMENTIZI PRECONFEZIONATI Magrone di sottofondazione eseguito mediante getto di conglomerato cementizio preconfezionato a dosaggio con cemento 42.5 R, per operazioni di media-grande entità, eseguito secondo le prescrizioni tecniche previ\r\n150 kg/mc","mc",123.04600000000001]
[17,"","Vespaio aerato con casseri plastici e soletta in c.a. h=50+5","m²",1225.23]
[18,"","Sottofondo grezzo alleggerito (caldana) sp. 8-9 cm.","m²",2035]
[19,"","Formazione di sottofondo per pavimenti con cls tipo 325 cementizio dosatura 250 kg di cemento, spessore fino a 5 cm con realizzazione del piano di posa tirato a frattazzo lungo armato con rete elettrosaldata","m²",2037]
[null,"","IMPERMEABILIZZAZIONI ED ISOLAMENTI"]
[{"$f":"+A25+1","v":20},"","Isolamento acustico solai","m²",800]
[21,"","Strato termoisolante in polistirene sp. cm 10 a parete","m²",122.2]
[22,"","Strato termoisolante in polistirene sp. cm 14 a pavimento","m²",1220]
[23,"","Strato termoisolante in polistirene sp. cm 15 a parete","m²",640]
[24,"","Impermeabilizzazione copertura piane tipo Derbigum o similare","m²",1386]
[25,"","Fondalina in polietilene per strutture interrate","m²",1324.96]
[26,"","Strato termoisolante in polistirene sp. medio cm 14 pendenzato pedonabile per copertura","m²",1239.98]
[27,"","Rivestimento isolante termico esterno del tipo a cappotto sp. cm. 15","m²",671.04]
[28,"","Rivestimento isolante termico davanzali in poliuretano tipo stiferite GT spessore 8 cm","m",208.89]
[29,"","Coprigiunto in lamiera di alluminio mm. 350","m",33.700000000000003]
[30,"","Coprigiunto in lamiera di alluminio mm. 450","m",21]
[31,"","Coprigiunto ad angolo in lamiera di alluminio mm. 375","m",21]
[32,"","Giunti di dilatazione per pareti esterne mm.260/390","m",27.6]
[33,"","Giunti di dilatazione in copertura","m",19.3]
[34,"","Coprigiunto in alluminio per pavimenti","m",16.850000000000001]
[null,"","MURATURE E PARETI"]
[{"$f":"+A41+1","v":35},"","MURATURE IN LATERIZIO Muratura in mattoni e malta dello spessore di una testa, retta o curva ed a qualsiasi, altezza compresi oneri e magisteri per l'esecuzione di ammorsature e quanto altro si renda necessario a realizzare l'opera a perfetta regola \r\ncon mattoni semipieni doppio UNI (12 x 12 x 25 cm)","mq",18.7]
[36,"","Muratura in elevazione realizzata con blocchi di laterizio alveolato di cui alla norma UNI EN 771, retta o curva ed a qualsiasi altezza, compresi oneri e magisteri per l'esecuzione di ammorsature e quanto altro si renda necessario a realizzare l'oper\r\nspessore 30 cm","mq",1054.972]
[37,"","MURATURE IN BLOCCHI FORATI in conglomerato di argilla espansa, 20 x 50 cm, a superficie piana, eseguita con malta bastarda, a qualsiasi altezza\r\nspessore 12 cm","mq",520.702]
[38,"","PARETI DIVISORIE IN CARTONGESSO Parete divisoria in lastre di cartongesso dello spessore di 12,5 mm fissate mediante viti autoperforanti ad una struttura costituita da profilati in lamiera di acciaio zincato da 0,6 mm con montanti ad interasse di 600\r\ncon due lastre di cartongesso su entrambi i lati della parete","mq",695.07899999999995]
[39,"","PARETI DIVISORIE IN CARTONGESSO Parete divisoria in lastre di cartongesso dello spessore di 12,5 mm fissate mediante viti autoperforanti ad una struttura costituita da profilati in lamiera di acciaio zincato da 0,6 mm con montanti ad interasse di 600\r\nsovrapprezzo inserimento pannello in lana di roccia spessore 100 mm densità 90 kg/mc (parete 57 dB)","mq",616.67899999999997]
[40,"","Pareti in laterizio forato dello spessore di 8 cm","m²",91.06]
[41,"","Pareti in laterizio forato dello spessore di 12 cm con forati di peso >= a kg 4,5","m²",338.71]
[42,"","Tavelle in laterizio spessore 4/6 cm","m²",4.33]
[43,"","Parete con doppia lastra per lato in cartongesso rinforzato spessore totale mm. 150 REI 60 divisoria aule","m²",112.7]
[44,"","Controparete interna costituita da lastre in cartongesso su orditura metallica con intercapedine e materassino in lana di roccia","m²",306.95999999999998]
[45,"","Formazione di cassonetti e chiusure impiantistiche sia verticali che orizzontali","m²",90.13]
[46,"","Compenso per realizzazione ancoraggi murature laterizie di facciata","m²",816]
[null,"","INTONACI E TINTEGGIATURE"]
[{"$f":"+A54+1","v":47},"","Fornitura e posa in opera di intonaco civile per interni in malta bastarda","m²",2819.9]
[48,"","Tinteggiatura per interni lavabile","m²",3183.27]
[49,"","Tinteggiatura a tempera per interni","m²",276]
[50,"","Tinteggiatura per esterni ai silicati","m²",671.04]
[null,"","PAVIMENTI, RIVESTIMENTI E CONTROSOFFITTI"]
[{"$f":"+A59+1","v":51},"","PAVIMENTO IN GRES in piastrelle poste in opera sfalsate o a spina di pesce su letto di malta di cemento tipo 32.5, previo spolvero di cemento con giunti connessi, compresi, tagli, sfridi, il lavaggio con acido e pulitura finale\r\ncon superficie liscia 20 x 20 cm, spessore 8 ÷ 10 mm","mq",72.02]
[52,"","Pavimento di gres porcellanato in piastrelle di 1a scelta, superficie naturale antiscivolo, ottenute per pressatura, a massa unica omogenea, per pavimentazioni ad intenso calpestio, rispondenti alla norma UNI EN 14411 gruppo B Ia UGL (non smaltato), \r\ngranigliato","mq",1852.615]
[53,"","Zoccolo battiscopa in gres ceramico","m",977.14]
[54,"","Zoccolo battiscopa in gres rosso","m",66.760000000000005]
[55,"","Gradini in opera completi di pedata e alzate in gres porcellanato","m",386.4]
[56,"","Rivestimento di facciata in doghe di alluminio","m²",442.48]
[57,"","Rivestimento esterno in pannelli di malta fibrorinforzata compresa sottostruttura","m²",122.2]
[58,"","Rivestimento frangisole orizzontale in doghe scatolate","m²",192]
[59,{"$f":"N69&M69","v":""},"Rivestimento in pannelli autoportanti in lamiera precoibentata","m²",74.56]
[60,"","Pannelli sandwich in lamiera precoibentata pendenzati mm.50","m²",33.4]
[61,"","Soglie in pietra artificiale","m²",10.1]
[62,"","Rivestimento ceramico in piastrelle quadrate o rettangolari, compreso manodopera, materiale di incollaggio, finitura e pulizia finale","m²",299.89]
[63,"","Controsoffitto in pannelli di fibra minerale","m²",779.23]
[64,"","Controsoffitto in pannelli di gesso alleggerito","m²",1022.2]
[65,"","Controparete interna in pannelli di mdf con rivestimento in laminato e lamiera preverniciata di raccordo","m²",13.92]
[null,"","OPERE DA FABBRO, FALEGNAME E SERRAMENTISTA"]
[{"$f":"+A75+1","v":66},"","CARPENTERIE METALLICHE ZINCATE di qualsiasi sezione e dimensione per travature semplici o composte per solai, ossature, rampanti e ripiani, scale, pensiline, balconi, ecc. con fori, piastre, squadre, tiranti, bulloni elettrodi, ecc.\r\nper travature composte zincate","kg",1431.8589999999999]
[{"$f":"+A77+1","v":67},"","CARPENTERIE METALLICHE VERNICIATE Profilati in ferro tondo, piatto, quadro od angolare con eventuale impiego di lamiera per ringhiere, inferriate, cancellate, griglie, ecc.\r\nringhiere semplici per scale compresa verniciatura a smalto","kg",823]
[68,"","Porta tagliafuoco cieca REI 60, con struttura in acciaio, ad un battente\r\ndim. l.p. 900 x 2.150 mm","cad",10]
[69,"","Porta tagliafuoco cieca REI 60, con struttura in acciaio, a due battenti\r\ndim. l.p. 1200 x 2150 mm","cad",3]
[70,"","Porta tagliafuoco cieca REI 60, con struttura in acciaio, a due battenti\r\ndim. l.p. 1800 x 2150 mm","cad",2]
[71,"","Porta tagliafuoco cieca REI 60, con struttura in acciaio, a due battenti\r\ndim. l.p. 1800 x 2150 mm - al netto maniglioni","cad",5]
[72,"","Porta interna a due ante con movimento rototraslante cm. (90+30)x210","n.",10]
[73,"","Porte esterne con specchiature grigliate in alluminio","m²",2.52]
[74,"","Facciata continua verticale in lega di alluminio: telaio fisso","m²",121.83]
[75,"","Facciata continua verticale in lega di alluminio: telaio apribile","m²",53.57]
[76,"","Serramenti in lega di alluminio: telaio fisso","m²",114.11]
[77,"","Serramenti in lega di alluminio: telaio apribile","m²",224.21]
[78,"","Porte-vetrate esterne in lega di alluminio","m²",26.52]
[79,"","Vetri camera per infissi esterni a nastro","m²",304.49]
[80,"","Vetri camera per facciate continue","m²",95.69]
[81,"","Vetro acidato bianco+pannello isolante","m²",68.040000000000006]
[82,"","Vetro camera esterno acidato","m²",18]
[83,"","Pannello coibentato (sopraluce fisso)","m²",107.06]
[84,"","Chiudiporta aereo a slitta","n.",9]
[85,"","Maniglioni antipanico per porte 1 anta","n.",4]
[86,"","Maniglioni antipanico per porte 2 ante","n.",18]
[87,"","Attuatore elettrico lineare per movimentazione serramenti","Cadauno",4]
[88,"","Parapetto in profilato metallico e vetro antisfondamento","m",16.8]
[89,"","Box doccia/wc in laminato stratificato hpl mm.14","m²",32.64]
[90,"","Lucernaio con evacuatore fumo e calore","m²",1.44]
[91,"","Lucernaio piano vetrato","m²",11.39]
[92,"","Finestra per tetto con tenda oscurante","Cadauno",2]
[93,"","Tende alla veneziana esterne in pvc","m²",285.92]
[94,"","Serramento apribile vetrato REI 60' dim.120x120 cm","Cadauno",1]
[95,"","Sovrapprezzo per inserimento di apertura anta a vasistas","Cadauno",54]
[96,"","Corrimano in acciaio inox per scale","m",37.5]
[97,"","Parapetto di sicurezza h=110 cm in acciaio zincato","m",3.5]
[98,"","Porta interna in alluminio e laminato plastico 90x210 cm","Cadauno",14]
[99,"","Porta interna in alluminio e laminato plastico 90x210 cm sollevate da terra 10 cm per bagni","Cadauno",6]
[100,"","Porta interna in alluminio e laminato plastico 90x210 cm sollevate da terra 10 cm per bagni disabili","Cadauno",2]
[101,"","Porta tagliafuoco doppia in acciaio REI 60 ad ante con parte centrale fissa","m²",33.54]
[null,"","MANTI DI COPERTURA E LATTONERIE"]
[{"$f":"+A112+1","v":102},"","Discendenti montati in opera compreso pezzi speciali ed ogni altro onere e magistero per dare l'opera finita a regola d'arte con esclusione dei soli collari di sostegno: diametro fino a 150 mm:\r\nin acciaio zincato preverniciato da 8/10","m",125]
[103,"","Bocchettone sifonato in gomma EPDM a flangia quadrata intaccata e codolo di altezza 200 mm, conico nella parte inferiore e cilindrico nella parte superiore, completo di cupola per la sifonatura e griglia parafoglia, posto in opera su foro già predisp\r\ndiametro 100 mm","cad",10]
[104,"","Lattoneria in alluminio preverniciato spessore 8/10","m²",308.39999999999998]
[105,"","Lattoneria in alluminio preverniciato spessore 10/10","m²",150]
[106,"","Copertina superiore in lattoneria alluminio preverniciato sp.7/10","m",174.8]
[107,"","Controsoffitto coperto in lattoneria alluminio preverniciato sp.7/10","m",175.05]
[108,"","Profilo chiusura e raccordo rivestimento in alluminio preverniciato sp.7/10","m",43.9]
[109,"","Imbotti infissi scala 2 in alluminio preverniciato sp.12/10","m",59.86]
[110,"","Pannelli in lamiera microforata","m²",14.04]
[null,"","FOGNATURE, SCARICHI, CANNE"]
[{"$f":"+A122+1","v":111},"","Scavo in sezione obbligata con mezzo meccanico con sistemazione entro cantiere","mc",196.64]
[112,"","RINTERRI E TRASPORTI Rinterro compreso l'avvicinamento dei materiali, il compattamento a strati dei materiali impiegati fino al raggiungimento delle quote del terreno preesistente ed il costipamento prescritto:\r\ncon materiale arido tipo A1, A2-4, A2-5, A3 proveniente da cave o da idoneo impianto di recupero rifiuti-inerti","mc",147.47999999999999]
[113,"","Pozzetti prefabbricati sifonati pluviali 30x30","Cadauno",10]
[114,"","Compenso per allaccio nuova rete fognaria a rete esistente","Cadauno",2]
[115,"","Vasca raccolta acqua piovana 15 mc","A corpo",1]
[116,"","Filtro per acqua piovana con pozzetto","A corpo",1]
[117,"","Pozzetti prefabbricati in c.a. dimensione interna 80x80x150 H cm","A corpo",2]
[118,"","Pozzetti ad elementi prefabbricati in c.a. dimensione interna 150x150x200 H cm","A corpo",1]
[119,"","Vasca di laminazione (area esondabile) da 70 mc ed opere relative","A corpo",1]
[120,{"$f":"N133&M133","v":""},"Sistema automatico di raccolta e pompaggio acque bianche","A corpo",1]
[121,"","Tubi in pvc rigido, forniti e posti in opera, con giunto ed anello elastomerico di tenuta per condotte di scarico interrate, conformi alle norme UNI EN 1401, compreso e compensato nel prezzo ogni onere per la posa in opera\r\ndiametro di 125 mm, spessore 3,2 mm","m",26.4]
[122,"","Tubi in pvc rigido, forniti e posti in opera, con giunto ed anello elastomerico di tenuta per condotte di scarico interrate, conformi alle norme UNI EN 1401, compreso e compensato nel prezzo ogni onere per la posa in opera\r\ndiametro di 160 mm, spessore 4 mm","m",54]
[123,"","Tubi in pvc rigido, forniti e posti in opera, con giunto ed anello elastomerico di tenuta per condotte di scarico interrate, conformi alle norme UNI EN 1401, compreso e compensato nel prezzo ogni onere per la posa in opera\r\ndiametro di 200 mm, spessore 4,9 mm","m",126]
[124,"","Tubi in pvc rigido, forniti e posti in opera, con giunto ed anello elastomerico di tenuta per condotte di scarico interrate, conformi alle norme UNI EN 1401, compreso e compensato nel prezzo ogni onere per la posa in opera\r\ndiametro di 250 mm, spessore 6,2 mm","m",97.2]
[125,"","Tubi in pvc rigido, forniti e posti in opera, con giunto ed anello elastomerico di tenuta per condotte di scarico interrate, conformi alle norme UNI EN 1401, compreso e compensato nel prezzo ogni onere per la posa in opera\r\ndiametro di 315 mm, spessore 7,7 mm","m",18]
[126,"","Tubi in pvc rigido, forniti e posti in opera, con giunto ed anello elastomerico di tenuta per condotte di scarico interrate, conformi alle norme UNI EN 1401, compreso e compensato nel prezzo ogni onere per la posa in opera\r\ndiametro di 400 mm, spessore 8,7 mm","m",120]
[127,"","Pozzetto di raccordo, realizzato con elementi prefabbricati in cemento vibrato con impronte laterali per l'immissione di tubi, senza coperchio o griglia, posti in opera compreso ogni onere e magistero per l'allaccio a tenuta con le tubazioni, ecc. in\r\n60 x 60 x 60 cm, peso 198 kg","cad",11]
[128,"","Elementi per prolungare i pozzetti, in calcestruzzo vibrato in opera compreso ogni onere e magistero per il collegamento a terra:\r\n60 x 60 x 60 cm","cad",11]
[129,"","FOSSE BIOLOGICHE Fossa Imhoff in calcestruzzo completa di bacino chiarificatore, vasca di raccolta e dispositivo espurgo fanghi rispondente al DLgs n. 152/2006 posta in opera compreso collegamento alle tubazioni, sottofondo di appoggio alto 20 cm con\r\nper n. 35 abitanti","cad",1]
[null,"","SISTEMAZIONI ESTERNE E ALLACCIAMENTI"]
[{"$f":"+A142+1","v":130},"","Scavo di sbancamento con mezzo meccanico con sistemazione entro cantiere","mc",340]
[{"$f":"+A144+1","v":131},"","Pavimento in battuto di cemento spazzolato per esterni","m²",283.8]
[132,"","Condotta acqua in polietilene Ø250","m",20]
[133,"","RILEVATI STRADALI Formazione di rilevato secondo le sagome prescritte con materiali idonei, provenienti sia dagli scavi che dalle cave (terre ghiaia sabbiosa, frazione passante al setaccio 0,075 UNI 2232 = 35%), il compattamento a strati fino a raggi\r\nper materiali provenienti dalle cave, compresa la fornitura, appartenenti ai gruppi A1, A2-4, A2-5, A3 o con equivalente materia prima secondaria proveniente da impianti di recupero rifiuti-inerti","mc",425.14]
[null,"","OPERE SPECIALI"]
[{"$f":"+A147+1","v":134},"","Ascensore per trasporto persone - per 8 persone, 3 fermate","corpo",1]
[null,"","ASSISTENZE MURARIE AGLI IMPIANTI"]
[{"$f":"+A149+1","v":135},"","CARPENTERIE METALLICHE ZINCATE di qualsiasi sezione e dimensione per travature semplici o composte per solai, ossature, rampanti e ripiani, scale, pensiline, balconi, ecc. con fori, piastre, squadre, tiranti, bulloni elettrodi, ecc.\r\nper travature composte zincate","kg",529.41200000000003]
[136,"","Assistenze murarie agli impianti","A corpo",1]
[null,"","QUADRI ELETTRICI"]
[{"$f":"+A152+1","v":137},"","Fornitura, posa in opera e collegamento di QUADRO ELETTRICO Q1 PIANO TERRA","n.",1]
[138,"","Fornitura, posa in opera e collegamento di QUADRO ELETTRICO Q2 PIANO PRIMO","n.",1]
[139,"","Fornitura, posa in opera e collegamento di QUADRO ELETTRICO QSCT","n.",1]
[140,"","Fornitura, posa e collegamento di Ampliamento e modifica QBT in cabina di trasformazione realizzato come da schema di progetto","n.",1]
[141,"","Fornitura, posa e collegamento di Sostituzione Quadro media Tensione 24kV/630A completo di dispositivo generale SF1-35A-3TV","n.",1]
[null,"","LINEE DI DISTRIBUZIONE"]
[{"$f":"+A158+1","v":142},"","Cavo flessibile conforme ai requisiti della Normativa Europea Regolamento UE 305/2011 - Prodotti da Costruzione CPR e alla.....nsione nominale 0,6/1 kV, non propagante l'incendio conforme CEI EN 60332-1-2: unipolare FG16R16 0,6/1 kV: sezione 185 mm².","m",1840]
[143,"","Cavo flessibile conforme ai requisiti della Normativa Europea Regolamento UE 305/2011 - Prodotti da Costruzione CPR e alla.....iale mescola termoplastica, non propagante l'incendio conforme CEI EN 60332-1-2: unipolare FG16M16 0,6/1 kV: sezione 25 mm²","m",40]
[144,"","Cavo flessibile conforme ai requisiti della Normativa Europea Regolamento UE 305/2011 - Prodotti da Costruzione CPR e alla.....iale mescola termoplastica, non propagante l'incendio conforme CEI EN 60332-1-2: unipolare FG16M16 0,6/1 kV: sezione 35 mm²","m",100]
[145,"","Cavo flessibile conforme ai requisiti della Normativa Europea Regolamento UE 305/2011 - Prodotti da Costruzione CPR e alla.....iale mescola termoplastica, non propagante l'incendio conforme CEI EN 60332-1-2: unipolare FG16M16 0,6/1 kV: sezione 50 mm²","m",60]
[146,"","Cavo flessibile conforme ai requisiti della Normativa Europea Regolamento UE 305/2011 - Prodotti da Costruzione CPR e alla.....iale mescola termoplastica, non propagante l'incendio conforme CEI EN 60332-1-2: unipolare FG16M16 0,6/1 kV: sezione 70 mm²","m",150]
[147,"","Cavo flessibile conforme ai requisiti della Normativa Europea Regolamento UE 305/2011 - Prodotti da Costruzione CPR e alla.....le mescola termoplastica, non propagante l'incendio conforme CEI EN 60332-1-2: tripolare FG16OM16 0,6/1 kV: sezione 1,5 mm²","m",400]
[148,"","Cavo flessibile conforme ai requisiti della Normativa Europea Regolamento UE 305/2011 - Prodotti da Costruzione CPR e alla.....le mescola termoplastica, non propagante l'incendio conforme CEI EN 60332-1-2: tripolare FG16OM16 0,6/1 kV: sezione 2,5 mm²","m",1000]
[149,"","Cavo flessibile conforme ai requisiti della Normativa Europea Regolamento UE 305/2011 - Prodotti da Costruzione CPR e alla.....iale mescola termoplastica, non propagante l'incendio conforme CEI EN 60332-1-2: tripolare FG16OM16 0,6/1 kV: sezione 4 mm²","m",740]
[150,"","Cavo flessibile conforme ai requisiti della Normativa Europea Regolamento UE 305/2011 - Prodotti da Costruzione CPR e alla.....iale mescola termoplastica, non propagante l'incendio conforme CEI EN 60332-1-2: tripolare FG16OM16 0,6/1 kV: sezione 6 mm²","m",320]
[151,"","Canale in lamiera zincata a caldo con processo Sendzimir, conforme UNI EN 10327, spessore del rivestimento protettivo non .....to 3,0 m, a fondo cieco o forato coperchio escluso, compresi accessori di fissaggio: sezione 300 x 75 mm, spessore 12/10 mm","m",270]
[152,"","Canale in lamiera zincata a caldo con processo Sendzimir, conforme UNI EN 10327, spessore del rivestimento protettivo non .....to 3,0 m, a fondo cieco o forato coperchio escluso, compresi accessori di fissaggio: sezione 400 x 75 mm, spessore 12/10 mm","m",110]
[153,"","Coperchi per canali a fondo forato o cieco e per passerelle in lamiera zincata a caldo con processo Sendzimir, conforme UNI EN 10327, spessore del rivestimento protettivo non inferiore a 14 µ: larghezza 300 mm, spessore 8/10 mm","m",270]
[154,"","Coperchi per canali a fondo forato o cieco e per passerelle in lamiera zincata a caldo con processo Sendzimir, conforme UNI EN 10327, spessore del rivestimento protettivo non inferiore a 14 µ: larghezza 400 mm, spessore 8/10 mm","m",110]
[155,"","Setto separatore in lamiera zincata a caldo con processo Sendzimir, spessore del rivestimento non inferiore a 14 µ, conforme UNI EN 10327, in elementi dello spessore di 8/10 mm preforati, per canale di altezza: 75 mm","n.",160]
[156,"","Cassetta di derivazione da parete, in materiale plastico autoestinguente, inclusi accessori per giunzione cavi, coperchio .....ssaggio: grado di protezione IP 44 o superiore, a media resistenza (75 °C), con passacavi, dimensioni in mm: 100 x 100 x 50","n.",60]
[157,"","Cassetta di derivazione da parete, in materiale plastico autoestinguente, inclusi accessori per giunzione cavi, coperchio .....ssaggio: grado di protezione IP 44 o superiore, a media resistenza (75 °C), con passacavi, dimensioni in mm: 150 x 110 x 70","n.",20]
[158,"","Fornitura e posa di cavo uni-multipolare flessibile 0,6/1 kV di rame rosso ricotto isolamento in gomma HEPR e guaina termo..... finita perfettamente funzionante e a regola d'arte - IEMMEQU FTG10OM1 0.6/1 KV RF31-22 AFUMEX - sezione 3G2.5 mm2 FTG10OM1","m",400]
[159,"","Fornitura e posa di cavo uni-multipolare flessibile 0,6/1 kV di rame rosso ricotto isolamento in gomma HEPR e guaina termo.....a finita perfettamente funzionante e a regola d'arte - IEMMEQU FTG10OM1 0.6/1 KV RF31-22 AFUMEX - sezione 5G16 mm2 FTG10OM1","m",30]
[null,"","IMPIANTO DI TERRA"]
[{"$f":"+A177+1","v":160},"","Corda in rame nudo, in opera completa di morsetti e capicorda, posata: interrata entro scavo predisposto: sezione nominale 50 mm²","m",150]
[161,"","Collettore di terra in bandella di rame, installato: a vista su isolatori: sezione 30 x 4 mm","m",2]
[162,"","Barra per messa a terra posta in opera su strutture metalliche, in piatto sagomato, fori di collegamento 11 mm: in acciaio zincato, dimensioni: 400 x 60 x 4 mm, per 12 collegamenti","n.",6]
[163,"","Dispersore in acciaio ramato del tipo prolungabile, lunghezza 1,5 m, spessore rame 100 µ, completo di morsetto di allaccio.....imensioni esterne di 400 x 400 x 400 mm, comprensivo dello scavo e del rinterro per la posa di quest'ultimo: diametro 25 mm","n.",6]
[164,"","Dispersore in acciaio ramato del tipo prolungabile, lunghezza 1,5 m, spessore rame 100 µ, completo di morsetto di allaccio.....m, comprensivo dello scavo e del rinterro per la posa di quest'ultimo: sovrapprezzo per prolungamento 1,5 m, diametro 25 mm","n.",6]
[null,"","IMPIANTI ILLUMINAZIONE E FORZA MOTRICE"]
[{"$f":"+A183+1","v":165},"","Fornitura, posa in opera e collegamento di PRESA DI CORRENTE BIVALENTE 2x10/16 A+T eseguito sotto traccia con tubo in pvc ..... allacciamento, scatola di derivazione e di accessori per dare l'opera finita perfettamente funzionante ed a regola d'arte.","n.",105]
[166,"","Fornitura, posa in opera e collegamento di PRESA DI CORRENTE BIVALENTE 2x10/16 A+T eseguito sotto traccia con tubo in pvc e cavo FS17 3G2.5 in derivazione da linea dorsale completo di custodia IP55 e di allacciamento, scatola di derivazione e di acce","n.",10]
[167,"","Fornitura, posa in opera e collegamento di PRESA DI CORRENTE BIVALENTE 2x10/16 A+T eseguito sotto traccia con tubo in pvc ..... allacciamento, scatola di derivazione e di accessori per dare l'opera finita perfettamente funzionante ed a regola d'arte.","n.",12]
[168,"","Fornitura, posa in opera e collegamento di PRESA DI CORRENTE UNEL 2x10/16 A+T  eseguito sotto traccia con tubo in pvc e ca..... allacciamento, scatola di derivazione e di accessori per dare l'opera finita perfettamente funzionante ed a regola d'arte.","n.",66]
[169,"","Fornitura, posa in opera e collegamento di PRESA DI CORRENTE CEE 2x16 A+T con interruttore di blocco e fusibili in custodi.....tta collettrice e di accessori per dare l'opera finita perfettamente funzionante ed a regola d'arte. - MARCA PALAZZOLI TAIS","n.",5]
[170,"","Fornitura, posa in opera e collegamento di PRESA DI CORRENTE CEE 3x16 A+N+T con interruttore di blocco e fusibili in custo.....tta collettrice e di accessori per dare l'opera finita perfettamente funzionante ed a regola d'arte. - MARCA PALAZZOLI TAIS","n.",5]
[171,"","Foritura, posa e collegamento di gruppo presa lavoro ciascuna con due bivalenti 2x10/16 A+T e due UNEL 2x10/16 A+T comprensivo di tutti gli accessori per dare l'opera finita, perfettamente funzionante e a regola d'arte.","n.",32]
[172,"","Fornitura, posa in opera e collegamento di PULSANTE DI EMERGENZA in cassetta con vetro frangibile di colore rosso IP44 ese.....cipale, di scatole di derivazione IP44 e di accessori per dare l'opera finita perfettamente funzionante ed a regola d'arte.","n.",1]
[173,"","Fornitura, posa e collegamento di torretta porta apparecchi 10/20 moduli a scomparsa in solaio/pavimento con gruppo prese lavoro comprensivo di tutti gli accessori per dare l'opera finita, perfettamente funzionanti e a regola d'arte.","n.",16]
[174,"","Fornitura, posa in opera e collegamento di punto luce derivato eseguito in parte nel controsoffitto con cavo FGTG10OM1 - c.....nale di uscita, scatola di derivazione e di accessori per dare l'opera finita perfettamente funzionante ed a regola d'arte.","n.",100]
[175,"","Fornitura, posa in opera e collegamento di punto luce derivato eseguito in parte nel controsoffitto con cavo FG16OM16 - co.....nale di uscita, scatola di derivazione e di accessori per dare l'opera finita perfettamente funzionante ed a regola d'arte.","n.",235]
[176,"","Fornitura, posa in opera e collegamento di punto luce interrotto eseguito a vista con tubo pvc - cordina FS17 e scatola IP..... allacciamento alla dorsale principale e di accessori per dare l'opera finita perfettamente funzionante ed a regola d'arte.","n.",9]
[177,{"$f":"N197&M197","v":""},"Fornitura, posa in opera e collegamento di punto PULSANTE eseguito sotto traccia con tubo pvc - compreso collegamento alla.....i 2x2x0.8 mmq , scatola di derivazione e di accessori per dare l'opera finita perfettamente funzionante ed a regola d'arte.","n.",36]
[null,"","CORPI ILLIMINANTI"]
[{"$f":"+A197+1","v":178},"","Fornitura, posa in opera e collegamento di apparecchio stagno LED con le seguenti caratteristiche : ILLUMINOTECNICHE Rendi.....nza iniziale del colore (MacAdam): 3. DOTAZIONE Staffe di fissaggio in acciaio inox. Marca 3F FILIPPI LINDA LED 2x30W L1570","n.",9]
[179,"","Fornitura, posa e collegamento di Plafoniera  avente le seguenti caratteristiche  : ILLUMINOTECNICHE Luminanza media <1000 cd/m² per angoli >65° radiali. UGR <17 (EN 12464- 1). Efficacia luminosa 123 lm/W.","n.",9]
[180,"","Fornitura, posa e collegamento di Plafoniera  avente le seguenti caratteristiche  : ILLUMINOTECNICHE Luminanza media <1500.....tti gli accessori per dare l'opera finita, perfettamente funzionante e a regola d'arte. Tipo 3F Filippi 39W/940 o similare.","n.",84]
[181,"","Fornitura, posa e collegamento di Plafoniera avente le seguenti caratteristiche  : ILLUMINOTECNICHE Luminanza media <1000 .....tutti gli accessori per dare l'opera finita perfettamente funzionante e a regola d'arte. - Tipo 3F Filippi 23126 o similare","n.",18]
[182,"","Fornitura, posa e collegamento di Plafoniera  avente le seguenti caratteristiche  : ILLUMINOTECNICHE  UGR <20 (EN 12464-1).....o tutti gli accessori per dare l'opera finita perfettamente funzionante e a regola d'arte. Tipo 3F Filippi 23318 o similare","n.",75]
[183,"","Fornitura, posa e collegamento di Plafoniera ILLUMINOTECNICHE Distribuzione diretta simmetrica wide. UGR <22 (EN 12464-1)...... tutti gli accessori per dare l'opera finita, perfettamente funzionante e a regola d'arte. Tipo 3F Filippi 30341 o similare","n.",36]
[null,"","IMPIANTO DOMOTICO"]
[{"$f":"+A204+1","v":184},"","Fornitura, posa e collegamento di Telecomando a infrarossi per impostare o modificare comodamente i parametri. Supporto a .....e: Massima 2 a 3 m comprensivo di tutti gli accessori per dare l'opera finita, perfettamente funzionante e a regola d'arte.","n.",1]
[185,"","Fornitura, posa e collegamento di Rilevatore di presenza Slave 360° PD2-S-DE controsoffitto comprensivo di tutti gli accessori per dare l'opera finita, perfettamente funzionante e a regola d'arte.","n.",1]
[186,"","Fornitura, posa e collegamento di Rilevatore di presenza Slave con ampia area di rilevamento, Impulso di attivazione del M..... impulsi 2 s o 9 s comprensivo di tutti gli accessori per dare l'opera finita, perfettamente funzionante e a regola d'arte.","n.",12]
[187,"","Fornitura, posa e collegamento di Rilevatore di presenza con Sensore di presenza dimmerabile LUXOMAT® PD2 M DALI/DSI DE/AP Versione DE per installazione in controsoffitto.","n.",19]
[188,"","Fornitura, posa e collegamento di Rilevatore di presenza con Sensore di presenza dimmerabile LUXOMAT® PD4 DALI/DSI DE/AP Versione DE per installazione in controsoffitto.","n.",13]
[null,"","IMPIANTO RIVELAZIONE INCENDI"]
[{"$f":"+A210+1","v":189},"","Centrale di segnalazione automatica di incendio, per impianti ad indirizzamento individuale, centrale a microprocessore, i.....tenitore metallico con grado di protezione IP 43; compresa l'attivazione dell'impianto: a 2 linee più 6 ingressi e 8 uscite","n.",1]
[190,"","Rivelatore ottico di fumo, a diffusione della luce, sensibile al fumo visibile, per impianti analogici ad indirizzamento individuale; compresa l'attivazione dell'impianto: completo di base di montaggio","n.",107]
[191,"","Rivelatore ottico di fumo, a diffusione della luce, sensibile al fumo visibile, per impianti analogici ad indirizzamento individuale; compresa l'attivazione dell'impianto: per condotte di aspirazione, completo di tubo di aspirazione da 30 cm","n.",4]
[192,"","Accessori per centrale di segnalazione automatica di incendio per impianti a zone o ad indirizzamento individuale; compresa l'attivazione dell'impianto: scheda a 4 zone, controllo/spegnimento","n.",2]
[193,"","Accessori per centrale di segnalazione automatica di incendio per impianti a zone o ad indirizzamento individuale; compresa l'attivazione dell'impianto: scheda per 1 canale di controllo o spegnimento, per impianti ad indirizzamento individuale","n.",2]
[194,"","Pulsante di emergenza a rottura di vetro con pressione, completo di telaio da incasso e martelletto per rottura vetro; compresa l'attivazione dell'impianto: per montaggio interno","n.",6]
[{"$f":"+A217+1","v":195},"","Segnalatore ottico a led, per singolo rivelatore; compresa l'attivazione dell'impianto","n.",65]
[196,"","Segnalatore di allarme incendio, compresa l'attivazione dell'impianto: segnalatore ottico/acustico, flash incorporato, sirena 110 db a 1 m, autoalimentato, completo di batteria","n.",6]
[197,"","Segnalatore di allarme incendio, compresa l'attivazione dell'impianto: cassonetto di segnalazione luminoso a luce fissa, con 4 lampade a incandescenza della potenza di 3 W ciascuna, alimentazione 12-24 V c.c. diciture da inserire sul frontale incluse","n.",4]
[198,"","Fornitura e posa di Cavo 2 conduttori 2.5 mmq twistato e schermato di colore rosso. Twistatura: passo 10cm. circa Grado di Isolamento: 4 Schermo con filtro di drenaggio Halogen Free - LSZH EN50200 PH30. Compreso accessori per dare l'opera finita perf","m",1000]
[199,"","Fornitura, posa e collegamento di Elettromagnete su porte tagliafuoco con pulsante di rilascio a bordo comprensivo di tutti gli accessori per dare l'opera finita, perfettamente funzionante e a regola d'arte.","n.",8]
[null,"","IMPIANTO DIFFUSIONE SONORA"]
[{"$f":"+A222+1","v":200},"","Fornitura, posa e collegamento di Console microfonica DXT3000 comprensivo di linea di collegamentpo alla centrale e di tutti gli accessori per dare l'opera finita, perfettamente funzionante e a regola d'arte.","n.",1]
[201,"","Fornitura, posa e collegamento di DIFFUSORE UNIVERSALE IN ACCIAIO PER MONTAGGIO A PARETE O SOFFITTO OMOLOGATO EN 54-24 completo di diffusore indicato per la diffusione dei messaggi di allarme con elevata intelligibilità e musica d'ambiente. Potenza M","n.",4]
[202,"","Fornitura, posa e collegamento di Unità centrale sistema DXT 3000 6 Amplificatori 500 W, EN 54-16 potenza totale 500 Watt completo di n. 2 BATTERIA AL PIOMBO VRLA GEL 12V- C20 18 Ah e di accessori per dare l'opera finita perfettamente funzionante ed ","n.",1]
[203,"","Fornitura, posa e collegamento di FINE LINEA PER DXT comprensivo di tutti gli accessori per dare l'opera finita, perfettamente funzionante e a regola d'arte.","n.",6]
[204,"","Fornitura, posa e collegamento di PLAFONIERA CON FONDELLO ANTIFIAMMA PER MONTAGGIO IN CONTROSOFFITTO OMOLOGATO EN 54-24 completo di diffusore indicato per la diffusione dei messaggi di allarme con elevata intelligibilità e musica d'ambiente. Potenza ","n.",65]
[null,"","IMPIANTO VIDEOCITOFONICO"]
[{"$f":"+A228+1","v":205},"","Scatola da incasso in materiale termoplastico per posti esterni citofonici o videocitofonici componibili, per l'alloggio di: 4 moduli","n.",1]
[206,"","Telaio modulare per posti esterni citofonici o videocitofonici componibili, in alluminio pressofuso verniciato, completo di cornice per: 4 moduli","n.",1]
[207,"","Cornice in alluminio pressofuso verniciato, per scatole da parete per posti esterni citofonici o videocitofonici componibili, per scatola con: 4 moduli","n.",1]
[208,"","Modulo di portiere videocitofonico, completo di gruppo fonico con volume regolabile separatamente per altoparlante e microfono, telecamera orientabile con illuminazione a led, in contenitore modulare installato in posto esterno componibile, compresa ","n.",1]
[209,"","Pulsantiera modulare, 1 modulo, installata in posto esterno componibile: a 3 pulsanti","n.",1]
[210,"","Videocitofono interno, corpo in materiale termoplastico installato a parete con microtelefono, regolazione volume contrasto e luminosità, pulsante apri-porta, pulsante con led di abilitazione fonica e serie di pulsanti ausiliari: per sistemi BUS, sch","n.",2]
[211,"","Miscelatore-alimentatore per impianti videocitofonici, basati su sistema BUS, ingresso 230 V c.a., miscelazione segnale BUS con il segnale video, connessione fino a 100 tra monitor e citofoni su 4 uscite, in contenitore termoplastico modulare in oper","n.",1]
[212,"","Circuito, in edificio residenziale, misurato fino alla cassetta di piano, comprensivo di ogni onere e materiale, per ogni utente: circuito videocitofonico","n.",1]
[213,"","Cavo antifiamma, per impianti videocitofonici, guaina in pvc-FR conforme CEI 20-22, posato in opera entro apposita conduttura: coassiale RG59 B/U LSZH","m",300]
[null,"","IMPIANTO TV"]
[{"$f":"+A238+1","v":214},"","Cavo per la trasmissione di segnali televisivi negli impianti di discesa d'antenna personali e centralizzati, per ricezion.....alte prestazioni per impianti centralizzati e reti terminali CATV, impedenza caratteristica 75 Ohm, diametro esterno 6,8 mm","m",100]
[215,"","Antenna TV-VHF, attacco per palo: Antenna TV-UHF a larga banda, riflettore a cortina, attacco per palo, banda passante 470 ÷ 606 MHz o 606 ÷ 862 MHz o 470 ÷ 862 MHz: a 10 elementi","n.",5]
[216,"","Palo autoportante in acciaio zincato: diametro 25 mm, spessore 1 mm, h 1,5 m","n.",1]
[217,"","Amplificatore a larga banda con amplificazione VHF e UHF separata, regolazione del guadagno 20 db, morsetti schermati, in contenitore plastico a prova di pioggia","n.",5]
[218,"","Fornitura, posa e collegamento di presa TV/SAT comprensivo di tutti gli accessori per dare l'opera finita, perfettamente funzionante e a regola d'arte.","n.",15]
[null,"","IMPIANTO ILLUMINAZIONE EMERGENZA"]
[{"$f":"+A244+1","v":219},"","Fornitura, posa e collegamento di plafoniera per illuminazione di sicurezza tipo Crystalway 20M 19021 CG-S comprensivo di tutti gli accessori per dare l'opera finita, perfettamente funzionante e a regola d'arte.","n.",11]
[220,"","Fornitura, posa e collegamento di CENTRALE ZB-S/2 C3 per impianto centralizzato di illuminazione di sicurezza completa di Set di batterie 216V 8,5AH (A412/8.5), modulo caricatore CM 1,7A, modulo SKU CG-S 4x1,5A ZB-S, nuovo modulo web per centrale ZB-","n.",1]
[221,"","Fornitura, posa e collegamento di plafoniera per US tipo GuideLed SL 13021-1 CGS Incasso Simmetrico comprensivo di tutti gli accessori per dare l'opera finita, perfettamente funzionante e a regola d'arte.","n.",15]
[222,"","Fornitura, posa e collegamento di Pittogramma CrystalWay 20m comprensivo di tutti gli accessori per dare l'opera finita, perfettamente funzionante e a regola d'arte.","n.",11]
[223,"","Fornitura, posa e collegamento di plafoniera per illuminazione di sicurezza tipo Micropoint 2 Incasso CG-S Asimmetrico compresivo di tutti gli accessori per dare l'opera finita, perfettamente funzionante e a regola d'arte.","n.",15]
[224,"","Fornitura, posa e collegamento di plafoniera per illuminazione di sicurezza tipo Nexitech LED 250lm CG-S IP65 comprensivo di tutti gli accessori per dare l'opera finita, perfettamente funzionante e a regola d'arte.","n.",5]
[225,"","Fornitura, posa e collegamento di plafoniera per illuminazione di sicurezza tipo Nexitech LED 250lm CG-S comprensivo di tutti gli accessori per dare l'opera finita, perfettamente funzionante e a regola d'arte.","n.",13]
[226,"","Fornitura, posa e collegamento di plafoniera di illuminazione di sicurezza tipo Nexitech LED 500lm CG-S comprensivo di tutti gli accessori per dare l'opera finita, perfettamente funzionante e a regola d'arte.","n.",26]
[null,"","IMPIANTO TRASMISSIONE DATI"]
[{"$f":"+A253+1","v":227},"","Fornitura, posa in opera e collegamento di ARMADIO TRASMISSIONE DATI costituito da armadio rack 19 pollici 12U, dim. 600x600x600mm (LxHxP), Completo di frontale in vetro piano con inserti in metallo - Porta reversibile con serratura di sicurezza inte","n.",1]
[228,"","Fornitura, posa in opera e collegamento di ARMADIO TRASMISSIONE DATI costituito da armadio rack 19 pollici 42U, dim. 600x2000x600mm (LxHxP), Completo di frontale in vetro piano con inserti in metallo - Porta reversibile con serratura di sicurezza int","n.",1]
[229,"","Fornitura, posa in opera e collegamento di presa trasmissione dati e telefono RJ45 cat.6 compreso incidenza di linea di collegamento in cavo UTP 24AWG cat 6 in derivazione dal box dati completa di tubazioni, scatole di derivazione, morsetti ed access","n.",65]
[null,"","IMPIANTO FOTOVOLTAICO"]
[{"$f":"+A257+1","v":230},"","Fornitura, e posa in opera di allacciamento DEPURATORE eseguito a vista con tubo pvc e cavo FG160R16. Compreso quota  scatole di derivazione e accessori per dare l'opera finita perfettamente funzionante ed a regola d'arte.","n.",1]
[231,"","Fornitura, e posa in opera di allacciamento POMPA DI CALORE eseguito a vista con tubo pvc e cavo FG16OR16. Compreso quota  scatole di derivazione e accessori per dare l'opera finita perfettamente funzionante ed a regola d'arte.","n.",1]
[232,{"$f":"N261&M261","v":""},"Fornitura, e posa in opera di allacciamento POMPA eseguito a vistsa con tubo pvc e cavo FG16OR16. Compreso quota  scatole di derivazione e accessori per dare l'opera finita perfettamente funzionante ed a regola d'arte.","n.",7]
[233,"","Fornitura, e posa in opera di allacciamento RECUPERATORE DI CALORE eseguito a vista con tubo pvc e cavo FG16OR16. Compreso quota  scatole di derivazione e accessori per dare l'opera finita perfettamente funzionante ed a regola d'arte.","n.",4]
[234,"","Fornitura, e posa in opera di allacciamento SONDA eseguito a vista con tubo pvc e cavo FG16OM16. Compreso quota cavo dal quadro tecnica del freddo (lunghezza media 60 m), scatole di derivazione IP44 e accessori per dare l'opera finita perfettamente f","n.",75]
[235,"","Fornitura, e posa in opera di allacciamento SERRANDA TAGLIAFUOCO eseguito a vista con tubo pvc e cavo FG16OM16. Compreso quota cavo dalla centrale di rivelazione fumi (lunghezza media 100 m), scatole di derivazione IP44 e accessori per dare l'opera f","n.",4]
[236,"","Fornitura, e posa in opera di allacciamento POMPA DI CALORE eseguito a vista con tubo pvc e cavo FG16OR16. Compreso quota  scatole di derivazione e accessori per dare l'opera finita perfettamente funzionante ed a regola d'arte.","n.",2]
[237,"","Fornitura, posa e collegamento di allaccio ad apparecchiatura elettrica (BOILER) eseguito a vista nel controsoffitto con cavo FG16OR16 comprensivo di tutti gli accessori per dare l'opera finita, perfettamente funzionante e a regola d'arte.","n.",3]
[238,"","Fornitura, posa e collegamento di allaccio ad apparecchiatura elettrica (ventilconettore) eseguito a vista nel controsoffitto con cavo FG16OR16 comprensivo di tutti gli accessori per dare l'opera finita, perfettamente funzionante e a regola d'arte.","n.",15]
[239,"","Fornitura, posa e collegamento di allaccio ad apparecchiatura elettrica regolatore ambiente eseguito sotto traccia con cavo FS17 comprensivo di tutti gli accessori per dare l'opera finita, perfettamente funzionante e a regola d'arte.","n.",33]
[240,"","Fornitura, e posa in opera di allacciamento ESTRATTORE eseguito a vista con tubo pvc e cavo FG16(O)M16 completo di allacciamento alla dorsale principale, di scatole di derivazione IP44, di selettore di comando 0-1 in custodia isolante IP44 e di acces","n.",1]
[241,"","Fornitura, posa e collegamento di sistema di fissaggio moduli fotovoltaici completo di Zavorra regolabile 0°-30°, morsetteria in alluminio, guaina bituminosa e di tutti gli accessori per dare l'opera finita, perfettamente funzionante e a regola d'art","n.",1]
[242,"","Fornitura, posa e collegamento di INVERTER  TRIFASE. Compreso accessorio di montaggio a parete, wiring box lato DC e lato AC, cavi di collegamento lato c.a. e c.ci e accessori per dare l'opera finita perfettamente funzionante ed a regola d'arte - A","n.",4]
[243,"","Fornitura, posa in opera e collegamento di QUADRO ELETTRICO DI CAMPO IMPIANTO FOTVOLTAICO - QFV realizzato con carpenteria modulare in materile isolante IP 55 completo di apparecchiture come indicato nello schema elettrico di progetto. Il quadro sarà","n.",8]
[244,"","Fornitura, posa in opera e collegamento di QUADRO ELETTRICO DI PARALLELO IMPIANTO FOTVOLTAICO - QFV realizzato con carpenteria modulare in acciaio verniciato completo di apparecchiture come indicato nello schema elettrico di progetto. Il quadro sarà ","n.",1]
[245,"","Fornitura, posa e collegamento di MODULO FOTOVOLTAICO POLICRISTALLINO 290 Wp - Classe 1 - 25 Anni di assicurazione. Compreso cavi FG21M21 PV3 6 mmq di collegamento, Contributo RAEE smaltimento moduli e accessori per dare l'opera finita perfettamente ","n.",104]
[246,"","Fornitura, posa in opera e collegamento di GRUPPO STATICO DI CONTINUITA' MONOFASE A DOPPIA CONVERSIONE con tecnologia a microprocessore, IGBT ad alta frequenza, serie \"GREENPOINT-RT\" della potenza di 1000 VA/900W con commutazione PWM - sinusoidale, a","n.",1]
[null,"","IMPIANTO DI CHIAMATA"]
[{"$f":"+A275+1","v":247},"","Pulsante di chiamata e annullo completo di placca e cornice, compreso  allacciamento e accessori per dare l'opera finita, perfettamente funzionante e a regola d'arte","n.",12]
[248,"","Modulo elettrico senza bus dati 4 campi ,completo di base, compreso  allacciamento e accessori per dare l'opera finita, perfettamente funzionante e a regola d'arte","n.",12]
[249,"","Modulo elettrico con bus dati ,completo di base, compreso  allacciamento e accessori per dare l'opera finita, perfettamente funzionante e a regola d'arte","n.",2]
[250,"","Modulo display dotato di pulsante di chiamata e annullo e segnalatore acustico, completo di cornice, compreso  allacciamento e accessori per dare l'opera finita, perfettamente funzionante e a regola d'arte","n.",2]
[251,"","Centrale SMCc compresa scheda FCD allacciamento e accessori per dare l'opera finita, perfettamente funzionante e a regola d'arte","n.",1]
[252,"","Alimentatore stabilizzato monofase compreso di supporto, allacciamento e accessori per dare l'opera finita, perfettamente funzionante e a regola d'arte","n.",1]
[253,"","Dispositivi di fine linea compresi  accessori per dare l'opera finita, perfettamente funzionante e a regola d'arte","n.",2]
[254,"","Dispositivi di fine linea /derivatore/separatore e  accessori per dare l'opera finita, perfettamente funzionante e a regola d'arte","n.",1]
[255,"","Campanella di fine lezione completa di pulsante in locale presidiato compresa di accessori per dare l'opera finita, perfettamente funzionante e a regola d'arte","n.",3]
[null,"","IMPIANTO ANTINTRUSIONE"]
[{"$f":"+A285+1","v":256},"","Fornitura e posa di: Centrale BUS a 8 zone espandibili fino a 56. Programmabile da PC in locale e remoto (modem). Interfac.....usi nella seguente voce gli oneri relativi ad assistenze murarie. Marca ELKRON Tipo MP 110TG A cod. MP2A00211 o equivalente","n.",1]
[257,"","Fornitura e posa in opera di: Sirena da interno in contenitore plastico protetto, 110 dB a 1 m. Assorbimento 290 mA. L'ope.....esclusi dalla seguente voce gli oneri relativi ad assistenze murarie. Marca ELKRON Tipo HP 12 cod. HP2800113 o equivalente.","n.",2]
[258,"","Fornitura e posa in opera di: punto allaccio di segnale in ingresso ad impianto antintrusione punto allaccio rivelatore, chiave attivazione/disattivazione,  modulo ingresso, modulo uscita, micro segnalatore di stato (porte ecc) compreso quota inciden","n.",20]
[{"$f":"+A289+1","v":259},"","Fornitura e posa in opera di: punto allaccio di segnale in uscita ad impianto antintrusione punto segnalatore ottico- acustico, compreso quota incidenza linee di alimentazione dorsale dal quadro di distribuzione di zona con cavo FG10(O)M1 2x2,5mmq, t","n.",4]
[260,"","Fornitura e posa di: software (incluso nella fornitura) compatibile con centrale di zona per la gestione dei punti di controllo compresa quota parte messa in funzione e collaudo di tutto l'impianto descritto.","n.",1]
[261,"","Fornitura e posa di: Tastiera con display LCD a 16 caratteri dotata di 2 ingressi di allarme a bordo. IMQ II° livello. L'o.....usi nella seguente voce gli oneri relativi ad assistenze murarie. Marca ELKRON Tipo MP 110TG A cod. MP2A00211 o equivalente","A corpo",1]
[262,"","Fornitura e posa di: Espansione 8 ingressi paralleli + 1 24 h + 1 AUX, 4 uscite, allocabile  nei contenitori CP 4F e CP 8Z..... esclusi nella seguente voce gli oneri relativi ad assistenze murarie. Marca ELKRON Tipo EP100 cod. MP7210111 o equivalente","n.",4]
[263,"","Fornitura e posa di: accessori di completamento per centrale antintrusione, per moduli di espansione, e tastiere remote. L.....d assistenze murarie. Contenitore plastico per ES 100, EP 100 e IV 4Z. Marca ELKRON Tipo CP 8Z cod. MP7400111 o equivalente","n.",2]
[264,"","Fornitura e posa di: accessori di completamento per centrale antintrusione, per moduli di espansione, e tastiere remote. L.....i ad assistenze murarie. 3Batteria ermetica ricaricabile 12 V, 7,2 Ah. Marca ELKRON Tipo RB 06 cod. RB0410113 o equivalente","n.",4]
[265,"","Fornitura e posa in opera di: Sensore a doppia tecnologia con lente di Fresnel piana intercambiabile. Portata max 15 m. Co.....esclusi nella seguente voce gli oneri relativi ad assistenze murarie. Marca ELKRON Tipo IMA 13 cod. IM3100211 o equivalente","n.",21]
[266,"","Fornitura e posa in opera di: Inseritore per chiave elettronica digitale. Dotato di 2 ingressi di allarme a bordo. Adattab.....sclusi dalla seguente voce gli oneri relativi ad assistenze murarie. Marca ELKRON Tipo DK2000M cod. DK2000111 o equivalente","n.",4]
[267,"","Fornitura e posa in opera di: Chiave elettronica digitale. IMQ. Marca ELKRON Tipo DK20 cod. DK1700111 o equivalente","n.",8]
[268,"","Fornitura e posa in opera di: Sirena in alluminio pressofuso. 103 dB a 3 m 16 suoni programmabili, Conteggio suonate Funzi.....clusi dalla seguente voce gli oneri relativi ad assistenze murarie. Marca ELKRON Tipo HPA702LG cod. HP8600211 o equivalente","n.",2]
[null,"","CENTRALE TERMICA/FRIGORIFERA"]
[{"$f":"+A299+1","v":269},"","ALLACCIAMENTO al nuovo scambiatore di calore del teleriscaldamento installato all'interno del Lotto 1 e nuovo allacciamento delle tubazioni del Lotto 1 sulle nuove tubazioni.","A corpo",1]
[270,"","POMPA di calore aria-acqua, tipo CLIVET mod. WSAN-XEM 80.4, refrigerante R-410A, completa di gruppo idronico con pompa ON-OFF mod. HYG1, versione con recupero termico parziale (desurriscaldatore) mod. D, serbatoio di accumulo mod. ACC, diffusore per ","n.",1]
[271,"","ACCUMULATORE di acqua tecnica tipo PACETTI mod. PVRE 500, capacità 500 litri, costruito in lamiera d'acciaio al carbonio, con trattamento esterno con vernice antiruggine, completo di isolamento esterno in poliuretano spessore 55 mm con guaina esterna","n.",1]
[272,"","SCAMBIATORE di calore a piastre ispezionabile tipo PACETTI mod. PK150S - L/22 piastre, completo di isolamento termico mod. ISOLPK150C, telaio verniciato PN16, piastre in acciaio AISI 304 spess.0,5 mm stampate con guarnizione a spina di pesce, guarniz","n.",1]
[273,"","SEPARATORE idraulico tipo CALEFFI art. 548122  DN 125, adatto per portate d'acqua fino a 75 mc/h, con corpo in acciaio con rivestimento epossidico, pressione massima d'esercizio 10 bar, temperatura 0-100°C, completo di valvola sfiato aria,  rubinetto","n.",1]
[274,"","SEPARATORE idraulico tipo CALEFFI art. 548102  DN 100, adatto per portate d'acqua fino a 56 mc/h, con corpo in acciaio con rivestimento epossidico, pressione massima d'esercizio 10 bar, temperatura 0-100°C, completo di valvola sfiato aria,  rubinetto","n.",1]
[275,"","VALVOLA di bilanciamento e taratura, tipo CALEFFI art. 130, Ø3/4\", corpo e sede in bronzo, otturatore in armatron, dotata .....chi filettati PN16. Il prezzo sarà comprensivo della mano d'opera per l'installazione a regola d'arte compreso il collaudo.","n.",2]
[276,"","VALVOLA di sicurezza qualificata ISPESL tipo CALEFFI art. 527 Ø 1/2\" tarata a 3,0 bar, completa di imbuto di scarico con curva orientabile e tubo di scarico. Il prezzo sarà comprensivo della mano d'opera per l'installazione a regola d'arte compreso i","n.",1]
[277,"","MANOMETRO tipo CALEFFI art. 557 fondo scala 6 bar con attacco radiale Ø 3/8\", flangia di prova DN 40, completo di rubinetto manometro campione ISPESL a tre vie e ricciolo ammortizzatore in rame cromato. Il prezzo sarà comprensivo della mano d'opera p","n.",5]
[278,"","VASO d'espansione chiuso da litri 24, marcato CE, in lamiera d'acciaio con membrana in gomma sintetica, avente pressione di targa 4 bar. Il prezzo sarà comprensivo della mano d'opera per l'installazione a regola d'arte compreso il collaudo.","n.",1]
[279,"","VASO d'espansione chiuso da litri 80, collaudato INAIL, in lamiera d'acciaio con membrana in gomma sintetica, avente pressione di targa 6 bar. Il prezzo sarà comprensivo della mano d'opera per l'installazione a regola d'arte compreso il collaudo.","n.",3]
[280,"","VASO d'espansione chiuso da litri 105, collaudato INAIL, in lamiera d'acciaio con membrana in gomma sintetica, avente pressione di targa 6 bar. Il prezzo sarà comprensivo della mano d'opera per l'installazione a regola d'arte compreso il collaudo.","n.",1]
[281,"","ALIMENTATORE automatico tipo CALEFFI art. 553 Ø 1/2\" con corpo in ottone OT 58, membrana e guarnizioni di tenuta in gomma rinforzata NBR, completo di filtro, rubinetto, valvola di ritegno e manometro.  Il prezzo sarà comprensivo della mano d'opera pe","n.",1]
[282,"","CARICATORE termoisolato tipo CILLICHEMIE mod. THERMOCYCLON per l'introduzione semplice di prodotti antincrostanti, anticorrosivi e risanamento negli impianti di riscaldamento ad acqua calda, completo di rubinetti di svuotamento e riempimento Ø1/2\" co","n.",1]
[283,"","PRODOTTO tipo CILLICHEMIE mod. HS 230 UNI a base di inibitori di corrosione antincrostanti e disincrostanti, adatto per tutti i materiali normalmente impiegati per gli impianti di riscaldamento e raffrescamento ad anello chiuso, da utilizzare per il ","kg",20]
[284,"","SERIE COLLETTORI di mandata e ritorno, realizzati con tubazioni in acciaio nero, con verniciatura a finire di antiruggine, Ø 182,9x193,7 mm, completi di saldature e attacchi c/to primario, fondi bombati, attacchi per n°3 c/ti secondari, staffaggi a p","A corpo",1]
[285,"","MANO D'OPERA per il lavaggio accurato dell'intero impianto di riscaldamento con acqua corrente, in modo da asportare i maggiori contaminanti presenti, quali: limature metalliche, particelle di vernice, sabbia di fonderia, strati metallici ossidanti, ","A corpo",1]
[286,"","TERMOMETRO a quadrante, conforme norme ISPESL, tipo CALEFFI art. 688, scala da 0 a 120°C, con attacco posteriore 1/2\", completo di pozzetto in ottone.  Il prezzo sarà comprensivo della mano d'opera per l'installazione a regola d'arte compreso il coll","n.",14]
[287,"","SARACINESCA in ghisa tipo KSB mod. BOA.C DN 32 con corpo in ghisa grigia GG-25 e tappo rivestito in gomma EPDM per temperatura massima di 120°C, esente da amianto e da manutenzione con tenuta morbida, con dispositivo di bloccaggio e limitatore di alz","n.",2]
[288,"","SARACINESCA in ghisa tipo KSB mod. BOA.C DN 50 con corpo in ghisa grigia GG-25 e tappo rivestito in gomma EPDM per temperatura massima di 120°C, esente da amianto e da manutenzione con tenuta morbida, con dispositivo di bloccaggio e limitatore di alz","n.",17]
[289,"","SARACINESCA in ghisa tipo KSB mod. BOA.C DN 65 con corpo in ghisa grigia GG-25 e tappo rivestito in gomma EPDM per temperatura massima di 120°C, esente da amianto e da manutenzione con tenuta morbida, con dispositivo di bloccaggio e limitatore di alz","n.",10]
[290,"","SARACINESCA in ghisa tipo KSB mod. BOA.C DN 80 con corpo in ghisa grigia GG-25 e tappo rivestito in gomma EPDM per temperatura massima di 120°C, esente da amianto e da manutenzione con tenuta morbida, con dispositivo di bloccaggio e limitatore di alz","n.",9]
[291,"","SARACINESCA in ghisa tipo KSB mod. BOA.C DN 100 con corpo in ghisa grigia GG-25 e tappo rivestito in gomma EPDM per temperatura massima di 120°C, esente da amianto e da manutenzione con tenuta morbida, con dispositivo di bloccaggio e limitatore di al","n.",7]
[292,"","VALVOLA di ritegno a disco in ghisa tipo KSB mod. BOA-RVK DN 50 con corpo in ghisa grigia GG-25, attacchi per flange UNI PN 16, completa di controflange, bulloni e guarnizioni. Il prezzo sarà comprensivo della mano d'opera per l'installazione a regol","n.",1]
[293,{"$f":"N325&M325","v":""},"VALVOLA di ritegno a disco in ghisa tipo KSB mod. BOA-RVK DN 65 con corpo in ghisa grigia GG-25, attacchi per flange UNI PN 16, completa di controflange, bulloni e guarnizioni. Il prezzo sarà comprensivo della mano d'opera per l'installazione a regol","n.",2]
[294,"","VALVOLA di ritegno a disco in ghisa tipo KSB mod. BOA-RVK DN 80 con corpo in ghisa grigia GG-25, attacchi per flange UNI PN 16, completa di controflange, bulloni e guarnizioni. Il prezzo sarà comprensivo della mano d'opera per l'installazione a regol","n.",2]
[295,"","VALVOLA di ritegno a disco in ghisa tipo KSB mod. BOA-RVK DN 100 con corpo in ghisa grigia GG-25, attacchi per flange UNI PN 16, completa di controflange, bulloni e guarnizioni. Il prezzo sarà comprensivo della mano d'opera per l'installazione a rego","n.",1]
[296,"","VALVOLA a sfera Ø 1/2\" a passaggio totale con corpo in ottone stampato OT 58, maniglia di duralluminio plastificato, sfera in ottone OT 58 cromata a spessore, tenuta ed anello premistoppa in Teflon, asta e ferma asta in ottone OT 8, attacchi filettat","n.",5]
[297,"","VALVOLA di ritegno Ø1/2\" installabile in qualsiasi posizione tipo ITAP mod. EUROPA con corpo in ottone stampato OT 58, piattello in acciaio inox AISI 304 con sede in gomma nitrilicata NBR 65 SH/PS, tappo e perno guida in ottone OT 58, molla in acciai","n.",1]
[298,"","GIUNTO compensatore/antivibrante tipo KSB mod. N-STANFLEX DN80, corpo in gomma, attacchi per flange UNI/DIN PN16, completo di controflange e materiale di montaggio. Il prezzo sarà comprensivo della mano d'opera per l'installazione a regola d'arte com","n.",2]
[299,"","GIUNTO silenziatore/antivibrante, tipo KSB mod. GRV STANFLEX, DN50, corpo in gomma di caucciù, flangiato in esecuzione PN 6, per flange UNI/DIN, completo controfange e bulloni. Il prezzo sarà comprensivo della mano d'opera per l'installazione a regol","n.",4]
[300,"","GIUNTO silenziatore/antivibrante, tipo KSB mod. GRV STANFLEX, DN65, corpo in gomma di caucciù, flangiato in esecuzione PN 6, per flange UNI/DIN, completo controfange e bulloni. Il prezzo sarà comprensivo della mano d'opera per l'installazione a regol","n.",4]
[301,"","GIUNTO silenziatore/antivibrante, tipo KSB mod. GRV STANFLEX, DN80, corpo in gomma di caucciù, flangiato in esecuzione PN 6, per flange UNI/DIN, completo controfange e bulloni. Il prezzo sarà comprensivo della mano d'opera per l'installazione a regol","n.",2]
[302,"","GIUNTO silenziatore/antivibrante, tipo KSB mod. GRV STANFLEX, DN100, corpo in gomma di caucciù, flangiato in esecuzione PN 6, per flange UNI/DIN, completo controfange e bulloni. Il prezzo sarà comprensivo della mano d'opera per l'installazione a rego","n.",2]
[303,"","TUBAZIONE in acciaio nero trafilato tipo MANNESMANN Ø 1\"1/4 senza saldatura a Norma UNI 8863 serie leggera, completo di raccorderia, curve stampate, saldatura ossiacetilenica ed elettrica, staffaggi e fissaggi a parete/soffitto, collarini di sostegno","m",5]
[304,"","TUBAZIONE in acciaio nero trafilato tipo MANNESMANN Ø 2\" senza saldatura a Norma UNI 8863 serie leggera, completo di raccorderia, curve stampate, saldatura ossiacetilenica ed elettrica, staffaggi e fissaggi a parete/soffitto, collarini di sostegno, v","m",100]
[305,"","TUBAZIONE in acciaio nero trafilato tipo MANNESMANN Ø 2\"1/2 senza saldatura a Norma UNI 8863 serie leggera, completo di raccorderia, curve stampate, saldatura ossiacetilenica ed elettrica, staffaggi e fissaggi a parete/soffitto, collarini di sostegno","m",74]
[306,"","TUBAZIONE in acciaio nero trafilato tipo MANNESMANN Ø 3\" senza saldatura a Norma UNI 8863 serie leggera, completo di raccorderia, curve stampate, saldatura ossiacetilenica ed elettrica, staffaggi e fissaggi a parete/soffitto, collarini di sostegno, v","m",57]
[307,"","TUBAZIONE in acciaio nero trafilato tipo MANNESMANN Ø 4\" senza saldatura a Norma UNI 8863 serie leggera, completo di raccorderia, curve stampate, saldatura ossiacetilenica ed elettrica, staffaggi e fissaggi a parete/soffitto, collarini di sostegno, v","m",178]
[308,"","RIVESTIMENTO isolante delle tubazioni percorse da acqua calda/refrigerata, correnti in zone riscadate, per tubazione Ø 2\", realizzato nel seguente sistema:\n- tubo in elastomero espanso estruso a cellule chiuse spessore 19 mm, con funzione isolante e ","m",44]
[309,"","RIVESTIMENTO isolante delle tubazioni percorse da acqua calda/refrigerata, correnti in zone riscadate, per tubazione Ø 3\", realizzato nel seguente sistema:\n- tubo in elastomero espanso estruso a cellule chiuse spessore 19 mm, con funzione isolante e ","m",20]
[310,"","RIVESTIMENTO isolante delle tubazioni percorse da acqua calda/refrigerata, correnti in zone riscadate, per tubazione Ø 4\", realizzato nel seguente sistema:\n- tubo in elastomero espanso estruso a cellule chiuse spessore 19 mm, con funzione isolante e ","m",88]
[311,"","RIVESTIMENTO isolante delle tubazioni percorse da acqua calda/refrigerata, correnti in centrale termica, per tubazione Ø 1\"1/4, realizzato nel seguente sistema:\n- tubo in elastomero espanso estruso a cellule chiuse spessore 13 mm, del tipo senza CFC,","m",5]
[312,"","RIVESTIMENTO isolante delle tubazioni percorse da acqua calda/refrigerata, correnti in centrale termica, per tubazione Ø 2\", realizzato nel seguente sistema:\n- tubo in elastomero espanso estruso a cellule chiuse spessore 13 mm, del tipo senza CFC, de","m",26]
[313,"","RIVESTIMENTO isolante delle tubazioni percorse da acqua calda/refrigerata, correnti in centrale termica, per tubazione Ø 2\"1/2, realizzato nel seguente sistema:\n- tubo in elastomero espanso estruso a cellule chiuse spessore 13 mm, del tipo senza CFC,","m",40]
[314,"","RIVESTIMENTO isolante delle tubazioni percorse da acqua calda/refrigerata, correnti in centrale termica, per tubazione Ø 3\", realizzato nel seguente sistema:\n- tubo in elastomero espanso estruso a cellule chiuse spessore 13 mm, del tipo senza CFC, de","m",15]
[315,"","RIVESTIMENTO isolante delle tubazioni percorse da acqua calda/refrigerata, correnti in centrale termica, per tubazione Ø 4\", realizzato nel seguente sistema:\n- tubo in elastomero espanso estruso a cellule chiuse spessore 13 mm, del tipo senza CFC, de","m",38]
[316,"","RIVESTIMENTO isolante delle tubazioni percorse da acqua calda/refrigerata, correnti all'esterno, per tubazione Ø 2\", realizzato nel seguente sistema:\n- tubo in elastomero espanso estruso a cellule chiuse spessore 13 mm, del tipo senza CFC, densità di","m",30]
[317,"","RIVESTIMENTO isolante delle tubazioni percorse da acqua calda/refrigerata, correnti all'esterno, per tubazione Ø 2\"1/2, realizzato nel seguente sistema:\n- tubo in elastomero espanso estruso a cellule chiuse spessore 13 mm, del tipo senza CFC, densità","m",34]
[318,"","RIVESTIMENTO isolante delle tubazioni percorse da acqua calda/refrigerata, correnti all'esterno, per tubazione Ø 3\", realizzato nel seguente sistema:\n- tubo in elastomero espanso estruso a cellule chiuse spessore 13 mm, del tipo senza CFC, densità di","m",22]
[319,"","RIVESTIMENTO isolante delle tubazioni percorse da acqua calda/refrigerata, correnti all'esterno, per tubazione Ø 4\", realizzato nel seguente sistema:\n- tubo in elastomero espanso estruso a cellule chiuse spessore 13 mm, del tipo senza CFC, densità di","m",52]
[320,"","REGOLAZIONE a quadro per centrale termica tipo COSTER, composta dalle seguenti apparecchiature:  \n- n.1 Regolatore programmabile tipo COSTER mod. ME012U, comunicazione BACNET nativo, con 12 ingressi universali;\n- n.2 Espansioni mod. MEX88U con 8 ingr","A corpo",1]
[321,"","REGOLAZIONE in campo per centrale termica tipo COSTER, composta dalle seguenti apparecchiature:   \n- n.12 Sonde ad immersione mod. SIH010 \n- n.1 Sonda di temperatura esterna mod. SAE001\n- n.2 Valvole a sfera a 2 vie mod. 2S DN 100\n- n.2 Valvole a sfe","A corpo",1]
[322,"","ELETTROCIRCOLATORE tipo GRUNDFOS mod. MAGNA1 80-80 F, a regolazione elettronica della velocità,  del tipo a rotore bagnato, albero e cuscinetti radiali in ceramica, cusicnetto reggispinta in carbonio, rotore e supporto dei cuscinetti in acciaio inox,","n.",1]
[{"$f":"+A354+1","v":323},"","ELETTROCIRCOLATORE tipo GRUNDFOS mod. MAGNA1 65-120 F, a regolazione elettronica della velocità,  del tipo a rotore bagnato, albero e cuscinetti radiali in ceramica, cusicnetto reggispinta in carbonio, rotore e supporto dei cuscinetti in acciaio inox","n.",2]
[324,"","ELETTROCIRCOLATORE tipo GRUNDFOS mod. MAGNA1 50-120 F, a regolazione elettronica della velocità,  del tipo a rotore bagnato, albero e cuscinetti radiali in ceramica, cusicnetto reggispinta in carbonio, rotore e supporto dei cuscinetti in acciaio inox","n.",1]
[325,"","ELETTROPOMPA tipo GRUNDFOS mod. TPE3 100-180-S, a regolazione elettronica della velocità,  del tipo a coclea, monostadio, a presa diretta, con bocca di aspirazione e bocca di scarico in linea di diametro identico, avente le seguenti carattestiche: Qm","n.",1]
[null,"","BATTERIE DI POST-RISCALDAMENTO"]
[{"$f":"+A357+1","v":326},"","VALVOLA a sfera Ø 1/2\" a passaggio totale con corpo in ottone stampato OT 58, maniglia di duralluminio plastificato, sfera in ottone OT 58 cromata a spessore, tenuta ed anello premistoppa in Teflon, asta e ferma asta in ottone OT 8, attacchi filettat","n.",18]
[327,"","VALVOLA a sfera Ø 3/4\" a passaggio totale con corpo in ottone stampato OT 58, maniglia di duralluminio plastificato, sfera in ottone OT 58 cromata a spessore, tenuta ed anello premistoppa in Teflon, asta e ferma asta in ottone OT 8, attacchi filettat","n.",8]
[328,"","GIUNTO compensatore di dilatazione, tipo JUCKER mod. EJ16-60 DN32, in esecuzione PN16, a saldare. Il prezzo sarà comprensivo della mano d'opera per l'installazione a regola d'arte compreso il collaudo.","n.",4]
[329,"","TUBAZIONE in acciaio nero trafilato tipo MANNESMANN Ø 1/2\" senza saldatura a Norma UNI 8863 serie leggera, completo di raccorderia, curve stampate, saldatura ossiacetilenica ed elettrica, staffaggi e fissaggi a parete/soffitto, collarini di sostegno,","m",39]
[330,"","TUBAZIONE in acciaio nero trafilato tipo MANNESMANN Ø 3/4\" senza saldatura a Norma UNI 8863 serie leggera, completo di raccorderia, curve stampate, saldatura ossiacetilenica ed elettrica, staffaggi e fissaggi a parete/soffitto, collarini di sostegno,","m",80]
[331,"","TUBAZIONE in acciaio nero trafilato tipo MANNESMANN Ø 1\" senza saldatura a Norma UNI 8863 serie leggera, completo di raccorderia, curve stampate, saldatura ossiacetilenica ed elettrica, staffaggi e fissaggi a parete/soffitto, collarini di sostegno, v","m",28]
[332,"","TUBAZIONE in acciaio nero trafilato tipo MANNESMANN Ø 1\"1/4 senza saldatura a Norma UNI 8863 serie leggera, completo di raccorderia, curve stampate, saldatura ossiacetilenica ed elettrica, staffaggi e fissaggi a parete/soffitto, collarini di sostegno","m",112]
[333,"","TUBAZIONE in acciaio nero trafilato tipo MANNESMANN Ø 2\" senza saldatura a Norma UNI 8863 serie leggera, completo di raccorderia, curve stampate, saldatura ossiacetilenica ed elettrica, staffaggi e fissaggi a parete/soffitto, collarini di sostegno, v","m",56]
[334,"","TUBAZIONE in acciaio nero trafilato tipo MANNESMANN Ø 2\"1/2 senza saldatura a Norma UNI 8863 serie leggera, completo di raccorderia, curve stampate, saldatura ossiacetilenica ed elettrica, staffaggi e fissaggi a parete/soffitto, collarini di sostegno","m",28]
[335,"","RIVESTIMENTO isolante delle tubazioni percorse da acqua calda/refrigerata, correnti in zone riscadate, per tubazione Ø 1/2\", realizzato nel seguente sistema:\n- tubo in elastomero espanso estruso a cellule chiuse spessore 13 mm, con funzione isolante ","m",39]
[336,"","RIVESTIMENTO isolante delle tubazioni percorse da acqua calda/refrigerata, correnti in zone riscadate, per tubazione Ø 3/4\", realizzato nel seguente sistema:\n- tubo in elastomero espanso estruso a cellule chiuse spessore 13 mm, con funzione isolante ","m",80]
[337,"","RIVESTIMENTO isolante delle tubazioni percorse da acqua calda/refrigerata, correnti in zone riscadate, per tubazione Ø 1\", realizzato nel seguente sistema:\n- tubo in elastomero espanso estruso a cellule chiuse spessore 13 mm, con funzione isolante e ","m",28]
[338,"","RIVESTIMENTO isolante delle tubazioni percorse da acqua calda/refrigerata, correnti in zone riscadate, per tubazione Ø 1\"1/4, realizzato nel seguente sistema:\n- tubo in elastomero espanso estruso a cellule chiuse spessore 13 mm, con funzione isolante","m",112]
[339,"","RIVESTIMENTO isolante delle tubazioni percorse da acqua calda/refrigerata, correnti in zone riscadate, per tubazione Ø 2\", realizzato nel seguente sistema:\n- tubo in elastomero espanso estruso a cellule chiuse spessore 19 mm, con funzione isolante e ","m",56]
[340,"","RIVESTIMENTO isolante delle tubazioni percorse da acqua calda/refrigerata, correnti in zone riscadate, per tubazione Ø 2\"1/2, realizzato nel seguente sistema:\n- tubo in elastomero espanso estruso a cellule chiuse spessore 19 mm, con funzione isolante","m",28]
[341,"","BATTERIA di post-riscaldamento, per installazione su canale, completa di cassone con pannellatura a doppia parete in acciaio zincato plastificato (spess. 0,5 mm) e interposto isolamento termico in poliuretano espanso iniettato densita' 45 Kg/mc con s","n.",2]
[342,"","BATTERIA di post-riscaldamento, per installazione su canale, completa di cassone con pannellatura a doppia parete in acciaio zincato plastificato (spess. 0,5 mm) e interposto isolamento termico in poliuretano espanso iniettato densita' 45 Kg/mc con s","n.",8]
[343,"","BATTERIA di post-riscaldamento, per installazione su canale, completa di cassone con pannellatura a doppia parete in acciaio zincato plastificato (spess. 0,5 mm) e interposto isolamento termico in poliuretano espanso iniettato densita' 45 Kg/mc con s","n.",3]
[344,"","REGOLAZIONE per BATTERIE DI POST-RISCALDAMENTO tipo COSTER, composta dalle seguenti apparecchiature:\n- n.13 Regolatori ambiente per batteria di post-riscaldamento tipo COSTER, protocollo di comunicazione BACNET, per comando di  valvola a due vie prop","A corpo",1]
[null,"","VENTILCONVETTORI"]
[{"$f":"+A377+1","v":345},"","VALVOLA a sfera Ø 3/4\" a passaggio totale con corpo in ottone stampato OT 58, maniglia di duralluminio plastificato, sfera in ottone OT 58 cromata a spessore, tenuta ed anello premistoppa in Teflon, asta e ferma asta in ottone OT 8, attacchi filettat","n.",8]
[346,"","GIUNTO compensatore di dilatazione, tipo JUCKER mod. EJ16-60 DN40, in esecuzione PN16, a saldare. Il prezzo sarà comprensivo della mano d'opera per l'installazione a regola d'arte compreso il collaudo.","n.",4]
[347,"","TUBAZIONE in acciaio nero trafilato tipo MANNESMANN Ø 1/2\" senza saldatura a Norma UNI 8863 serie leggera, completo di raccorderia, curve stampate, saldatura ossiacetilenica ed elettrica, staffaggi e fissaggi a parete/soffitto, collarini di sostegno,","m",70]
[348,"","TUBAZIONE in acciaio nero trafilato tipo MANNESMANN Ø 3/4\" senza saldatura a Norma UNI 8863 serie leggera, completo di raccorderia, curve stampate, saldatura ossiacetilenica ed elettrica, staffaggi e fissaggi a parete/soffitto, collarini di sostegno,","m",130]
[349,"","TUBAZIONE in acciaio nero trafilato tipo MANNESMANN Ø 1\" senza saldatura a Norma UNI 8863 serie leggera, completo di raccorderia, curve stampate, saldatura ossiacetilenica ed elettrica, staffaggi e fissaggi a parete/soffitto, collarini di sostegno, v","m",64]
[350,"","TUBAZIONE in acciaio nero trafilato tipo MANNESMANN Ø 1\"1/4 senza saldatura a Norma UNI 8863 serie leggera, completo di raccorderia, curve stampate, saldatura ossiacetilenica ed elettrica, staffaggi e fissaggi a parete/soffitto, collarini di sostegno","m",60]
[351,"","TUBAZIONE in acciaio nero trafilato tipo MANNESMANN Ø 1\"1/2 senza saldatura a Norma UNI 8863 serie leggera, completo di raccorderia, curve stampate, saldatura ossiacetilenica ed elettrica, staffaggi e fissaggi a parete/soffitto, collarini di sostegno","m",82]
[352,"","TUBAZIONE in acciaio nero trafilato tipo MANNESMANN Ø 2\" senza saldatura a Norma UNI 8863 serie leggera, completo di raccorderia, curve stampate, saldatura ossiacetilenica ed elettrica, staffaggi e fissaggi a parete/soffitto, collarini di sostegno, v","m",60]
[353,"","TUBAZIONE in acciaio nero trafilato tipo MANNESMANN Ø 2\"1/2 senza saldatura a Norma UNI 8863 serie leggera, completo di raccorderia, curve stampate, saldatura ossiacetilenica ed elettrica, staffaggi e fissaggi a parete/soffitto, collarini di sostegno","m",28]
[354,"","TUBAZIONI in polietilene ad alta densità PEHD tipo GEBERIT, Ø 32 mm, per la formazione delle reti di scarico condensa, complete di pezzi speciali, raccorderia e materiale di consumo vario.  Il prezzo sarà comprensivo della mano d'opera per l'installa","m",210]
[355,{"$f":"N389&M389","v":""},"RIVESTIMENTO isolante delle tubazioni percorse da acqua calda/refrigerata, correnti in zone riscadate, per tubazione Ø 1/2\", realizzato nel seguente sistema:\n- tubo in elastomero espanso estruso a cellule chiuse spessore 13 mm, con funzione isolante ","m",70]
[356,"","RIVESTIMENTO isolante delle tubazioni percorse da acqua calda/refrigerata, correnti in zone riscadate, per tubazione Ø 3/4\", realizzato nel seguente sistema:\n- tubo in elastomero espanso estruso a cellule chiuse spessore 13 mm, con funzione isolante ","m",130]
[357,"","RIVESTIMENTO isolante delle tubazioni percorse da acqua calda/refrigerata, correnti in zone riscadate, per tubazione Ø 1\", realizzato nel seguente sistema:\n- tubo in elastomero espanso estruso a cellule chiuse spessore 13 mm, con funzione isolante e ","m",64]
[358,"","RIVESTIMENTO isolante delle tubazioni percorse da acqua calda/refrigerata, correnti in zone riscadate, per tubazione Ø 1\"1/4, realizzato nel seguente sistema:\n- tubo in elastomero espanso estruso a cellule chiuse spessore 13 mm, con funzione isolante","m",60]
[359,"","RIVESTIMENTO isolante delle tubazioni percorse da acqua calda/refrigerata, correnti in zone riscadate, per tubazione Ø 1\"1/2, realizzato nel seguente sistema:\n- tubo in elastomero espanso estruso a cellule chiuse spessore 19 mm, con funzione isolante","m",82]
[360,"","RIVESTIMENTO isolante delle tubazioni percorse da acqua calda/refrigerata, correnti in zone riscadate, per tubazione Ø 2\", realizzato nel seguente sistema:\n- tubo in elastomero espanso estruso a cellule chiuse spessore 19 mm, con funzione isolante e ","m",60]
[361,"","RIVESTIMENTO isolante delle tubazioni percorse da acqua calda/refrigerata, correnti in zone riscadate, per tubazione Ø 2\"1/2, realizzato nel seguente sistema:\n- tubo in elastomero espanso estruso a cellule chiuse spessore 19 mm, con funzione isolante","m",28]
[362,"","VENTILCONVETTORE per installazione a controsoffitto modello Cassette, tipo SABIANA mod. SK-ECM12, completo di gruppo ventilante a basso consumo con motore LEC, con funzionamento continuo antistratificazione, batteria di scambio termico in rame e alet","n.",7]
[363,"","VENTILCONVETTORE per installazione a controsoffitto modello Cassette, tipo SABIANA mod. SK-ECM22, completo di gruppo ventilante a basso consumo con motore LEC, con funzionamento continuo antistratificazione, batteria di scambio termico in rame e alet","n.",11]
[364,"","ACCESSORI a completamento dell'installazione del singolo ventilconvettore comprendenti, valvole di sezionamento con isolamento termico ed anticondensa. Il prezzo sarà comprensivo della mano d'opera per l'installazione a regola d'arte compreso il coll","n.",18]
[365,"","REGOLAZIONE per VENTILCONVETTORI tipo COSTER, composta dalle seguenti apparecchiature: \n- n.18 Regolatori ambiente per ventilconvettore tipo COSTER, protocollo di comunicazione BACNET, per comando ventilatore del ventilconvettore con segnale 0-10 V e","A corpo",1]
[null,"","CANALIZZAZIONI"]
[{"$f":"+A399+1","v":366},"","RIVESTIMENTO isolante delle canalizzazioni spessore 13 mm, con lastre in elastomero prodotto per estrusione e successiva espansione a celle chiuse senza l'impiego di CFC avente densità di 80 kg/mc, conducibilità termica di 0,039 W/m°C a 40°C, posato ","m²",1200]
[367,"","RIVESTIMENTO isolante delle canalizzazioni spessore 30 mm, con lastre in elastomero prodotto per estrusione e successiva espansione a celle chiuse senza l'impiego di CFC avente densità di 80 kg/mc, conducibilità termica di 0,039 W/m°C a 40°C, posato ","m²",243]
[368,"","UNITA' DI TRATTAMENTO ARIA PIANO TERRA tipo SABIANA mod. TITAN 175-150, di tipo componibile, per installazione all'esterno. Struttura in profilati di alluminio estruso spess. 70 mm, con pannellatura a doppia parete in acciaio zincato plastificato (sp","n.",1]
[369,"","UNITA' DI TRATTAMENTO ARIA PIANO PRIMO tipo SABIANA mod. TITAN 250-200, di tipo componibile, per installazione all'esterno. Struttura in profilati di alluminio estruso spess. 70 mm, con pannellatura a doppia parete in acciaio zincato plastificato (sp","n.",1]
[370,"","RECUPERATORE DI CALORE a flusso incrociato, per istallazione a controsoffitto, tipo SABIANA serie ENERGY PLUS mod. ENY-P2-S, completo di batteria ad acqua mod. BAE 1-2 e comando a parete mod. T-EP,  avente le seguenti caratteristiche nominali: Portat","n.",4]
[371,"","DIFFUSORE di mandata/ripresa aria tipo ALDES/EUROREGISTER mod. AF704/B dim. 225x225 mm, in alluminio estruso, del tipo per mandata/ripresa orizzontale multidirezionale su quattro lati, di forma quadrata, montaggio a filo controsoffitto o filo soffitt","n.",37]
[372,"","DIFFUSORE di mandata/ripresa aria tipo ALDES/EUROREGISTER mod. AF704/B dim. 375x375 mm, in alluminio estruso, del tipo per mandata/ripresa orizzontale multidirezionale su quattro lati, di forma quadrata, montaggio a filo controsoffitto o filo soffitt","n.",6]
[373,"","DIFFUSORE di mandata aria tipo ALDES/EUROREGISTER mod. AG282BDEPIS3 L=1800 mm, di tipo lineare per installazione a controsoffitto. Sarà corredato di:\n- plenum mod. RSI isolato con n°2 attacchi laterale circolare Ø 150 mm\n- serranda a movimento contra","n.",21]
[374,"","DIFFUSORE di mandata aria tipo ALDES/EUROREGISTER mod. AG282BDEPIS3 L=2000 mm, di tipo lineare per installazione a controsoffitto. Sarà corredato di:\n- plenum mod. RSI isolato con n°2 attacchi laterale circolare Ø 150 mm\n- serranda a movimento contra","n.",6]
[375,"","GRIGLIA di ripresa aria in alluminio estruso, tipo ALDES/EUROREGISTER mod. AC 121 B dim. 300x800 mm, ad alette orizzontali fisse inclinate a 40°, completa di serranda ad alette contrapposte.\nIl prezzo sarà comprensivo della mano d'opera per l'install","n.",1]
[376,"","GRIGLIA di ripresa aria in alluminio estruso, tipo ALDES/EUROREGISTER mod. AC 121 B dim. 400x800 mm, ad alette orizzontali fisse inclinate a 40°, completa di serranda ad alette contrapposte.\nIl prezzo sarà comprensivo della mano d'opera per l'install","n.",10]
[377,"","GRIGLIA di ripresa aria in alluminio estruso, tipo ALDES/EUROREGISTER mod. AC 121 B dim. 400x1000 mm, ad alette orizzontali fisse inclinate a 40°, completa di serranda ad alette contrapposte.\nIl prezzo sarà comprensivo della mano d'opera per l'instal","n.",2]
[378,"","GRIGLIA di ripresa aria in alluminio estruso, tipo ALDES/EUROREGISTER mod. AC 121 B dim. 400x1200 mm, ad alette orizzontali fisse inclinate a 40°, completa di serranda ad alette contrapposte.\nIl prezzo sarà comprensivo della mano d'opera per l'instal","n.",1]
[379,"","GRIGLIA di transito antiluce tipo ALDES/EUROREGISTER mod. AC 181 dim. 400x200 mm, in alluminio estruso con lame a V montate orizzontalmente, per montaggio a porta completa di cornice, controcornice e viti di montaggio. Il prezzo sarà comprensivo dell","n.",16]
[380,"","GRIGLIA di transito antiluce tipo ALDES/EUROREGISTER mod. AC 181 dim. 500x200 mm, in alluminio estruso con lame a V montate orizzontalmente, per montaggio a porta completa di cornice, controcornice e viti di montaggio. Il prezzo sarà comprensivo dell","n.",1]
[381,"","GRIGLIA di transito antiluce tipo ALDES/EUROREGISTER mod. AC 181 dim. 400x300 mm, in alluminio estruso con lame a V montate orizzontalmente, per montaggio a porta completa di cornice, controcornice e viti di montaggio. Il prezzo sarà comprensivo dell","n.",2]
[382,"","VALVOLA di ventilazione tipo ALDES-EUROREGISTER mod. SR 149 Ø150 mm, in polipropilene bianco antiurto, con regolazione dell'aria aspirata tramite rotazione del disco. Resistenza all'umidità ed alla maggior parte dei composti acidi.  Sarà corredata di","n.",16]
[383,"","SERRANDA tagliafuoco REI 120 tipo ALDES/EUROREGISTER mod. FT 30 dim. 250x150 mm, tunnel in acciaio zincato profondità 300 mm, otturatore in materiale refrattario spess. 55 mm, fusibile metallico tarato a 72°C.  Il prezzo sarà comprensivo della mano d","n.",2]
[384,"","SERRANDA tagliafuoco REI 120 tipo ALDES/EUROREGISTER mod. FT 30 dim. 450x250 mm, tunnel in acciaio zincato profondità 300 mm, otturatore in materiale refrattario spess. 55 mm, fusibile metallico tarato a 72°C.  Il prezzo sarà comprensivo della mano d","n.",2]
[385,"","SERRANDA tagliafuoco REI 120 tipo ALDES/EUROREGISTER mod. FT 30 dim. 200x150 mm, tunnel in acciaio zincato profondità 300 mm, otturatore in materiale refrattario spess. 55 mm, fusibile metallico tarato a 72°C.  Il prezzo sarà comprensivo della mano d","n.",2]
[386,"","SERRANDA tagliafuoco REI 120 tipo ALDES/EUROREGISTER mod. FT 30 dim. 500x300 mm, tunnel in acciaio zincato profondità 300 mm, otturatore in materiale refrattario spess. 55 mm, fusibile metallico tarato a 72°C.  Il prezzo sarà comprensivo della mano d","n.",2]
[{"$f":"+A421+1","v":387},"","SERRANDA tagliafuoco REI 120 tipo ALDES/EUROREGISTER mod. FT 30 dim. 350x200 mm, tunnel in acciaio zincato profondità 300 mm, otturatore in materiale refrattario spess. 55 mm, fusibile metallico tarato a 72°C.  Il prezzo sarà comprensivo della mano d","n.",2]
[388,"","SERRANDA tagliafuoco REI 120 tipo ALDES/EUROREGISTER mod. FT 30 dim. 500x350 mm, tunnel in acciaio zincato profondità 300 mm, otturatore in materiale refrattario spess. 55 mm, fusibile metallico tarato a 72°C.  Il prezzo sarà comprensivo della mano d","n.",2]
[389,"","SERRANDA tagliafuoco REI 120 tipo ALDES/EUROREGISTER mod. FT 30 dim. 700x500 mm, tunnel in acciaio zincato profondità 300 mm, otturatore in materiale refrattario spess. 55 mm, fusibile metallico tarato a 72°C.  Il prezzo sarà comprensivo della mano d","n.",2]
[390,"","SERRANDA tagliafuoco REI 120 tipo ALDES/EUROREGISTER mod. FT 30 dim. 300x250 mm, tunnel in acciaio zincato profondità 300 mm, otturatore in materiale refrattario spess. 55 mm, fusibile metallico tarato a 72°C.  Il prezzo sarà comprensivo della mano d","n.",4]
[391,"","SERRANDA tagliafuoco REI 120 tipo ALDES/EUROREGISTER mod. FT 30 dim. 900x350 mm, tunnel in acciaio zincato profondità 300 mm, otturatore in materiale refrattario spess. 55 mm, fusibile metallico tarato a 72°C.  Il prezzo sarà comprensivo della mano d","n.",4]
[392,"","SERRANDA tagliafuoco REI 120 tipo ALDES/EUROREGISTER mod. FT 30 dim. 700x700 mm, tunnel in acciaio zincato profondità 300 mm, otturatore in materiale refrattario spess. 55 mm, fusibile metallico tarato a 72°C.  Il prezzo sarà comprensivo della mano d","n.",2]
[393,"","SERRANDA tagliafuoco REI 120 tipo ALDES/EUROREGISTER  Ø 400 mm, tunnel in acciaio zincato profondità 300 mm, otturatore in materiale refrattario spess. 55 mm, fusibile metallico tarato a 72°C.  Il prezzo sarà comprensivo della mano d'opera per l'inst","n.",1]
[394,"","REGOLATORE di portata tipo TROX TECHNIK mod. EN dim. 300x200 mm, a funzionamento meccanico automatico. Involucro e serranda di regolazione in lamiera di acciaio zincata, molla a lamina in acciaio inox, soffietto di regolazione in poliuretano, cuscine","n.",1]
[395,"","REGOLATORE di portata tipo TROX TECHNIK mod. EN dim. 400x200 mm, a funzionamento meccanico automatico. Involucro e serranda di regolazione in lamiera di acciaio zincata, molla a lamina in acciaio inox, soffietto di regolazione in poliuretano, cuscine","n.",1]
[396,"","REGOLATORE di portata tipo TROX TECHNIK mod. EN dim. 400x250 mm, a funzionamento meccanico automatico. Involucro e serranda di regolazione in lamiera di acciaio zincata, molla a lamina in acciaio inox, soffietto di regolazione in poliuretano, cuscine","n.",10]
[397,"","REGOLATORE di portata tipo TROX TECHNIK mod. EN dim. 500x250 mm, a funzionamento meccanico automatico. Involucro e serranda di regolazione in lamiera di acciaio zincata, molla a lamina in acciaio inox, soffietto di regolazione in poliuretano, cuscine","n.",1]
[398,"","CANALIZZAZIONI per la distribuzione, ripresa ed espulsione dell'aria, realizzate in lamiera di acciaio zincato, con forma quadrata e/o rettangolare e/o circolare, avente spessore 0,8 mm quando il lato maggiore supera i 600 mm, 1,0 mm quando il lato m","kg",13000]
[399,"","TUBAZIONE in PVC autoestinguente, Ø 400 mm, colore rosso mattone, di tipo rigido, fornita in barre da 6 m, a formare condotto d'estrazione o di immissione aria, collegato ad aspiratore o a bocchetta d'immissione, completa di terminale di espulsione/a","m",20]
[400,"","REGOLAZIONE a quadro per UTA P.TERRA tipo COSTER, composta dalle seguenti apparecchiature:\n - n°1 Regolatore programmabile tipo COSTER mod. SE6166, comunicazione BACNET nativo, con 16 ingressi universali, 6 uscite digitali e 6 uscite analogiche.\n\n Il","A corpo",1]
[401,"","REGOLAZIONE in campo per UTA P.TERRA tipo COSTER, composta dalle seguenti apparecchiature:   \n\n- n.2 Servocomandi per serranda mod. CFS 404 di tipo modulante 2-10 V, con ritorno a molla\n- n.1 Servocomando per serranda mod. CSN 204 di tipo modulante 2","A corpo",1]
[402,"","REGOLAZIONE a quadro per UTA P.PRIMO tipo COSTER, composta dalle seguenti apparecchiature:\n - n°1 Regolatore programmabile tipo COSTER mod. SE6166, comunicazione BACNET nativo, con 16 ingressi universali, 6 uscite digitali e 6 uscite analogiche.\n\n Il","A corpo",1]
[403,"","REGOLAZIONE in campo per UTA P.PRIMO tipo COSTER, composta dalle seguenti apparecchiature:   \n\n- n.2 Servocomandi per serranda mod. CFS 404 di tipo modulante 2-10 V, con ritorno a molla\n- n.1 Servocomando per serranda mod. CSN 204 di tipo modulante 2","A corpo",1]
[404,"","REGOLAZIONE per TERMOVENTILANTI tipo COSTER, composta dalle seguenti apparecchiature: \n- n.4 Regolatori ambiente per termoventilante tipo COSTER, protocollo di comunicazione BACNET, per comando di n.2 ventilatori ON-OFF e comando valvola a due vie pr","A corpo",1]
[405,"","TORRINO centrifugo in polipropilene, per estrazione cappa laboratorio di chimica, tipo FLAKTWOODS mod. RW30/250 6 POLI, avente le seguenti caratteristiche: portata estrazione 2.000 mc/h, prevalenza 200 Pa, alimentazione elettrica 3x400 V, potenza mas","n.",1]
[null,"","IMPIANTO IDRICO IGIENICO SANITARIO"]
[{"$f":"+A440+1","v":406},"","SCALDACQUA a pompa di calore, tipo ARISTON mod. NUOS EVO 80 A+WH, composto da unità monoblocco interna comprendente: boiler per produzione acqua calda sanitaria, unità evaporante, unità condensante e ventilatori per veicolare l'aria di evaporazione, ","n.",3]
[407,"","FILTRO a Y tipo CALEFFI art. 577  Ø2\" in acciaio, attacchi filettati e maglia in acciaio inox con rubinetto di scarico. Il prezzo sarà comprensivo della mano d'opera per l'installazione a regola d'arte compreso il collaudo.","n.",1]
[408,"","DISCONNETTORE a zona di pressione ridotta controllabile tipo CALEFFI art. 574 Ø 2\" a Norma UNI 9157, costruito in ottone con guarnizione di tenuta in elastomero ad alta resistenza, molle in acciaio inox, alberi di scorrimento rivestiti con materiale ","n.",1]
[409,"","FILTRO di sicurezza autopulente tipo CILLICHEMIE mod. CILLIT-MULTIPUR M 1\"1/2 , adatto per la filtrazione dell'acqua potabile e delle acque di processo per l'eliminazione di tutti i corpi estranei fino ad una granulometria di 90 micron. Il filtro dov","n.",1]
[410,"","ADDOLCITORE tipo CILLICHEMIE mod.  NECKAR BIODATA D-96 228 a scambio di base automatico a comando computerizzato con rigenerazione automatica a comando volumetrico, completo di sistema di autosinfezione. Costituito da colonna completa di resine, test","n.",1]
[411,"","DOSATORE idrodinamico di sali, tipo CILLICHEMIE mod. CILLIT IMMUNO 420N, per dosaggio automatico di sali minerali, con idromodulatore compensatore e regolatore di dosaggio, raccordo a bandiera ruotabile a 360°, soffietto multidimensionale, dotato di ","n.",1]
[412,"","MANOMETRO tipo CALEFFI art. 557 Ø 3/8\" fondo scala 10 bar con attacco radiale .  Il prezzo sarà comprensivo della mano d'opera per l'installazione a regola d'arte compreso il collaudo.","n.",3]
[413,"","RUBINETTO a sfera Ø 1/2\" a passaggio totale con corpo in ottone stampato OT 58, maniglia di duralluminio plastificato, sfera in ottone OT 58 cromata a spessore, tenuta ed anello premistoppa in Teflon, asta e ferma asta in ottone OT 8, attacchi filett","n.",3]
[414,"","VALVOLA a sfera Ø 3/4\" a passaggio totale con corpo in ottone stampato OT 58, maniglia di duralluminio plastificato, sfera in ottone OT 58 cromata a spessore, tenuta ed anello premistoppa in Teflon, asta e ferma asta in ottone OT 8, attacchi filettat","n.",8]
[415,"","VALVOLA a sfera Ø 1\"1/2 a passaggio totale con corpo in ottone stampato OT 58, maniglia di duralluminio plastificato, sfera in ottone OT 58 cromata a spessore, tenuta ed anello premistoppa in Teflon, asta e ferma asta in ottone OT 8, attacchi filetta","n.",7]
[416,"","VALVOLA a sfera Ø 2\" a passaggio totale con corpo in ottone stampato OT 58, maniglia di duralluminio plastificato, sfera in ottone OT 58 cromata a spessore, tenuta ed anello premistoppa in Teflon, asta e ferma asta in ottone OT 8, attacchi filettati ","n.",3]
[417,{"$f":"N453&M453","v":""},"VALVOLA di ritegno Ø1\"1/2  installabile in qualsiasi posizione tipo ITAP mod. EUROPA con corpo in ottone stampato OT 58, piattello in acciaio inox AISI 304 con sede in gomma nitrilicata NBR 65 SH/PS, tappo e perno guida in ottone OT 58, molla in acci","n.",2]
[418,"","VALVOLA di ritegno Ø2\"  installabile in qualsiasi posizione tipo ITAP mod. EUROPA con corpo in ottone stampato OT 58, piattello in acciaio inox AISI 304 con sede in gomma nitrilicata NBR 65 SH/PS, tappo e perno guida in ottone OT 58, molla in acciaio","n.",1]
[419,"","TUBAZIONE in polietilene ad alta densità PEAD, PN10, Ø 50 mm per condotte di fluidi di pressione a norma UNI 7611 tipo 312 p 50, con linee blu estruse, complete di raccordi di giunzione a compressione per tubo fino a Ø 32 mm, giunzioni per saldatura ","m",110]
[420,"","TUBAZIONE in polietilene ad alta densità PEAD, PN10, Ø 63 mm per condotte di fluidi di pressione a norma UNI 7611 tipo 312 p 50, con linee blu estruse, complete di raccordi di giunzione a compressione per tubo fino a Ø 32 mm, giunzioni per saldatura ","m",15]
[421,"","TUBAZIONI in polietilene ad alta densità PEHD tipo GEBERIT, Ø 110 mm, per la formazione delle colonne di scarico principali e dei collettori di raccolta fino un metro fuori dal fabbricato, complete di pezzi speciali, raccorderia, punti fissi, punti g","m",80]
[422,"","TUBAZIONE in acciaio zincato MANNESMANN Ø 3/4\", a norma UNI 8863 serie leggera, completa di raccorderia in ghisa malleabile zincata a cuore bianco a bordi rinforzati, staffaggio ed ancoraggio a parete o a soffitto tramite collarini di sostegno. Il pr","m",55]
[423,"","TUBAZIONE in acciaio zincato MANNESMANN Ø 1\", a norma UNI 8863 serie leggera, completa di raccorderia in ghisa malleabile zincata a cuore bianco a bordi rinforzati, staffaggio ed ancoraggio a parete o a soffitto tramite collarini di sostegno. Il prez","m",75]
[424,"","TUBAZIONE in acciaio zincato MANNESMANN Ø 1\"1/4, a norma UNI 8863 serie leggera, completa di raccorderia in ghisa malleabile zincata a cuore bianco a bordi rinforzati, staffaggio ed ancoraggio a parete o a soffitto tramite collarini di sostegno. Il p","m",30]
[425,"","TUBAZIONE in acciaio zincato MANNESMANN Ø 1\"1/2, a norma UNI 8863 serie leggera, completa di raccorderia in ghisa malleabile zincata a cuore bianco a bordi rinforzati, staffaggio ed ancoraggio a parete o a soffitto tramite collarini di sostegno. Il p","m",80]
[426,"","TUBAZIONE in acciaio zincato MANNESMANN Ø 2\", a norma UNI 8863 serie leggera, completa di raccorderia in ghisa malleabile zincata a cuore bianco a bordi rinforzati, staffaggio ed ancoraggio a parete o a soffitto tramite collarini di sostegno. Il prez","m",10]
[427,"","RIVESTIMENTO isolante delle tubazioni percorse da acqua calda/refrigerata, correnti in zone riscadate, per tubazione Ø 3/4\", realizzato nel seguente sistema:\n- tubo in elastomero espanso estruso a cellule chiuse spessore 13 mm, con funzione isolante ","m",55]
[428,"","RIVESTIMENTO isolante delle tubazioni percorse da acqua calda/refrigerata, correnti in zone riscadate, per tubazione Ø 1\", realizzato nel seguente sistema:\n- tubo in elastomero espanso estruso a cellule chiuse spessore 13 mm, con funzione isolante e ","m",75]
[429,"","RIVESTIMENTO isolante delle tubazioni percorse da acqua calda/refrigerata, correnti in zone riscadate, per tubazione Ø 1\"1/4, realizzato nel seguente sistema:\n- tubo in elastomero espanso estruso a cellule chiuse spessore 13 mm, con funzione isolante","m",30]
[430,"","RIVESTIMENTO isolante delle tubazioni percorse da acqua calda/refrigerata, correnti in zone riscadate, per tubazione Ø 1\"1/2, realizzato nel seguente sistema:\n- tubo in elastomero espanso estruso a cellule chiuse spessore 19 mm, con funzione isolante","m",80]
[431,"","RIVESTIMENTO isolante delle tubazioni percorse da acqua calda/refrigerata, correnti in zone riscadate, per tubazione Ø 2\", realizzato nel seguente sistema:\n- tubo in elastomero espanso estruso a cellule chiuse spessore 19 mm, con funzione isolante e ","m",10]
[432,"","TUBAZIONE in PVC autoestinguente, Ø 150 mm, colore rosso mattone, di tipo rigido, fornita in barre da 6 m, a formare condotto d'estrazione o di immissione aria, collegato ad aspiratore o a bocchetta d'immissione, completa di terminale di espulsione/a","m",24]
[433,"","ALLACCIAMENTO impianto idrico alla tubazione del LOTTO 1","A corpo",1]
[434,"","PILETTA di scarico da incasso curva a pavimento tipo GEBERIT in polietilene ad alta densità PEHD, completa di prolunga, sifone e griglia quadrata 100x100 mm, tubo in polietilene ad alta densità PEHD tipo GEBERIT, completo di pezzi speciali, raccorder","n.",2]
[435,"","COLLETTORE in ottone nichelato Ø3/4\" tipo CHEMIDRO con n°3 attacchi Ø1/2\" acqua sanitaria, completo di mensola di sostegno, uscite Ø1/2\", n°3 rubinetti di sezionamento di sezionamento, raccordi filettati maschio Ø 16x1/2\", da assemblare fino al raggi","n.",14]
[436,"","COLLETTORE in ottone nichelato Ø3/4\" tipo CHEMIDRO con n°2 attacchi Ø1/2\" acqua sanitaria, completo di mensola di sostegno, uscite Ø1/2\", n°3 rubinetti di sezionamento di sezionamento, raccordi filettati maschio Ø 16x1/2\", da assemblare fino al raggi","n.",8]
[437,"","CASSETTINA in acciaio di contenimento collettori acqua calda e fredda da installare all'interno di ciascun bagno, completa di coperchio di chiusura. Il prezzo sarà comprensivo della mano d'opera per l'installazione a regola d'arte compreso il collaud","n.",6]
[438,"","MANIGLIONE dritto tipo THERMOMAT mod. M120 da 120 cm., realizzato in tubo di acciaio Ø 32 mm zincato e verniciato a polveri poliuretaniche termoindurenti, completo di piattelli in ferro con relativi rosoni in acciaio inox, tasselli meccanici e/o chim","n.",4]
[439,"","BARRA di sostegno ribaltabile con porta carta tipo THERMOMAT mod. 840, realizzata in tubo di acciaio Ø 32 mm zincato e verniciato a polveri poliuretaniche termoindurenti, completa di piastra, tasselli meccanici e/o chimici per il fissaggio a muro e d","n.",2]
[440,"","LAVABO in ceramica di colore bianco, tipo POZZI GINORI serie COLIBRI dim. 55x43 cm, predisposto per rubinetteria monoforo, completo di:\n- Gruppo miscelatore monocomando tipo SAVIL serie RIO VITTORIA cromato, con bocca di erogazione fissa dotata di ro","n.",14]
[441,"","LAVABO fisso in ceramica tipo SANITOSCO mod. SEMIFONTE, per disabili a fronte concavo, bordi arrotondati, appoggio per gomiti, spartiacqua antispruzzo, completo di:\n- Miscelatore monocomando con leva lunga mod. HANDIMIX LXL\n- Mensole fisse di sostegn","n.",2]
[442,"","VASO all'inglese a pavimento, in ceramica di colore bianco tipo POZZI GINORI serie COLIBRI, completo di:\n- Sedile con coperchio di tipo pesante laccato bianco\n- Cassetta da incasso tipo GEBERIT da lt. 6, completa di canotto di collegamento cromato al","n.",14]
[443,"","VASO-BIDET per disabili, tipo SANITOSCO mod. SANIWAT, in ceramica di colore bianco, per installazione sospesa, con catino allungato, apertura anteriore, sifone per scarico a parete, completo di:\n- Cassetta di risciacquo appoggiata mod. ZAFFIRO con co","n.",2]
[444,"","PIATTO DOCCIA quadrato in fire-clay di colore bianco, con superficie antisdrucciolo, tipo POZZI GINORI serie NAVIGLIO dim. 80 x 80 cm, corredato di:\n- Gruppo miscelatore monocomando per doccia, da incasso a parete, tipo SAVIL serie RIO VITTORIA, crom","n.",2]
[null,"","IMPIANTO ANTINCENDIO"]
[{"$f":"+A480+1","v":445},"","TUBAZIONE in acciaio nero trafilato tipo MANNESMANN Ø 1\"1/2 senza saldatura a Norma UNI 8863 serie leggera, completo di raccorderia, curve stampate, saldatura ossiacetilenica ed elettrica, staffaggi e fissaggi a parete/soffitto, collarini di sostegno","m",45]
[446,"","TUBAZIONE in acciaio nero trafilato tipo MANNESMANN Ø 2\" senza saldatura a Norma UNI 8863 serie leggera, completo di raccorderia, curve stampate, saldatura ossiacetilenica ed elettrica, staffaggi e fissaggi a parete/soffitto, collarini di sostegno, v","m",15]
[447,"","TUBAZIONE in acciaio nero trafilato tipo MANNESMANN Ø 2\"1/2 senza saldatura a Norma UNI 8863 serie leggera, completo di raccorderia, curve stampate, saldatura ossiacetilenica ed elettrica, staffaggi e fissaggi a parete/soffitto, collarini di sostegno","m",50]
[448,"","TUBAZIONE in polietilene ad alta densità PEAD Ø 75 mm, PN 16, per condotte antincendio in pressione, a norma UNI 7611 tipo 312 p 50, con linee blu estruse, complete di raccordi di giunzione a compressione per tubo fino a Ø 32 mm, giunzioni per saldat","m",10]
[449,"","TUBAZIONE in polietilene ad alta densità PEAD Ø 110 mm, PN 16, per condotte antincendio in pressione, a norma UNI 7611 tipo 312 p 50, con linee blu estruse, complete di raccordi di giunzione a compressione per tubo fino a Ø 32 mm, giunzioni per salda","m",200]
[450,"","RIVESTIMENTO isolante delle tubazioni percorse da acqua calda/refrigerata, correnti in zone riscadate, per tubazione Ø 1\"1/2, realizzato nel seguente sistema:\n- tubo in elastomero espanso estruso a cellule chiuse spessore 19 mm, con funzione isolante","m",45]
[{"$f":"+A487+1","v":451},"","RIVESTIMENTO isolante delle tubazioni percorse da acqua calda/refrigerata, correnti in zone riscadate, per tubazione Ø 2\", realizzato nel seguente sistema:\n- tubo in elastomero espanso estruso a cellule chiuse spessore 19 mm, con funzione isolante e ","m",15]
[{"$f":"+A488+1","v":452},"","RIVESTIMENTO isolante delle tubazioni percorse da acqua calda/refrigerata, correnti in zone riscadate, per tubazione Ø 2\"1/2, realizzato nel seguente sistema:\n- tubo in elastomero espanso estruso a cellule chiuse spessore 19 mm, con funzione isolante","m",50]
[{"$f":"+A489+1","v":453},"","ALLACCIAMENTO impianto idrico antincendio all'acquedotto","A corpo",1]
[{"$f":"+A490+1","v":454},"","GRUPPO per attacco motopompa UNI 70 sottosuolo, Ø 3\", flangiato, costituito da saracinesca in ottone o ghisa a corpo piatto, valvola di ritegno a clapet, valvola di sicurezza in ottone e rubinetti idranti con bocchettoni di presa, materiale di cunsum","n.",1]
[{"$f":"+A491+1","v":455},"","CASSETTA antincendio con idrante UNI 45, del tipo a parete conforme alla UNI EN 671-2, MARCATO CE CERT. N. 0497-CPD-172-05, tipo BOCCIOLONE serie 2/H, mod. 2092CE, costituita da cassetta da esterno/interno a parete DN 45 \"Linea Electa\" in acciaio al ","n.",8]
[null,"","ONERI SICUREZZA"]
[{"$f":"+A492+1","v":456},"","COMPENSO ONERI PER IL RISPETTO DELLA SICUREZZA CANTIERE\n(non soggetto a ribasso d'asta)","corpo",1,63500,"sessantatremilacinquecentovirgolazero",{"$f":"ROUND(E494*F494,arr)","v":63500}]
["A",null,"TOTALE OFFERTA IN CIFRE\n[Somma da Voce 1 a Voce 456 ]"]
["B",null,"TOTALE OFFERA IN LETTERE\n[Voce A in lettere]"]
["C",null,"TOTALE OFFERTA AL NETTO SICUREZZA [Voce A meno Voce 456]"]
["D",null,"IMPORTO A BASE DI GARA\n(AL NETTO SICUREZZA)",2434347.0900000008]
["E",null,"RIBASSO SU IMPORTO A BASE DI GARA\nIN % [ (Voce D - Voce C) / Voce D ]"]
["F",null,"RIBASSO SU IMPORTO A BASE DI GARA\nIN LETTERE [ Voce E in lettere ]"]
["L'indicazione delle voci e delle quantità non ha effetto sull'importo complessivo dell'offerta che, seppure determinato attraverso l'applicazione dei prezzi unitari offerti alle quantità delle varie lavorazioni resta fisso ed invariabile"]
["Prestare attenzione: gli articoli contrassegnati con (*) sono già presenti nelle righe precedenti e devono essere compilati con lo stesso valore"]
["La voce al n. 456 è relativa ai COSTI DELLA SICUREZZA e non è ribassabile"]
[]
[null,null,"IL RESPONSABILE UNICO DEL PROCEDIMENTO",null,null,null,"L'IMPRESA"]
[null,null,"(ing. Azzio Gatti)",null,null,null,"(timbro e firma del legale rappresentante)"]
[]
[]
[]
[]
[]
[]
[]
[]
[]
[]
[null,null,"Costi di sicurezza aziendali ai sensi dell'art. 95, comma 10 del D.Lgs. n. 50/2016"]
[]
[null,"(in cifre)"]
[]
[]
[null,"(in lettere)"]
[]
[]
[]
[null,null,"Costi della manodopera ai sensi dell’art. 95, comma 10 del D.Lgs. n. 50/2016"]
[]
[null,"(in cifre)"]
[]
[]
[null,"(in lettere)"]
[]
[]
[]
[null,null,"L’operatore economico deve specificare il percorso posto in essere (risorse impiegate e costo delle medesime) per il calcolo del costo della manodopera come sopra indicato tenuto conto dei livelli salariali retributivi indicati nelle apposite tabelle di cui all’art. 23 comma 16 del Codice e specificando il CCNL di riferimento. "]